Document Date,Purchase Order No,Line Item No,Supplier ID,Supplier Name,Pro Class,Pro Class Description,Description of Goods (Purpose of expenditure look up),Service/Department   (SAP Hierarchy Position),Expense Area (cost centre desc),Net Order Value Over 5000.00 (line item value shown here),GL Code,Cost Centre/WBS
03/02/2022,ZAV702487,1,35,CBC Computer Systems Ltd,270000,Information Communication Technology  ,Information and Communications Technology,Corporate and Support Services,IT AVA Non - SLA,"110,764.45",402001,13001
03/02/2022,ZAV702487,2,35,CBC Computer Systems Ltd,270000,Information Communication Technology  ,Information and Communications Technology,Corporate and Support Services,IT AVA Non - SLA,"7,385.00",402001,13001
10/02/2022,ZAV702903,1,12402,VeryPC Ltd,270000,Information Communication Technology  ,Information and Communications Technology,Corporate and Support Services,IT AVA Non - SLA,"4,500.00",402001,13001
10/02/2022,ZAV702903,2,12402,VeryPC Ltd,270000,Information Communication Technology  ,Information and Communications Technology,Corporate and Support Services,IT AVA Non - SLA,933.50,402001,13001
14/02/2022,ZAV703022,1,12351,Getech,270000,Information Communication Technology  ,Information and Communications Technology,Corporate and Support Services,IT AVA Non - SLA,810.00,402001,13001
14/02/2022,ZAV703022,2,12351,Getech,270000,Information Communication Technology  ,Information and Communications Technology,Corporate and Support Services,IT AVA Non - SLA,"4,650.00",402001,13001
14/02/2022,ZAV703022,3,12351,Getech,270000,Information Communication Technology  ,Information and Communications Technology,Corporate and Support Services,IT AVA Non - SLA,450.00,402001,13001
14/02/2022,ZAV703022,4,12351,Getech,270000,Information Communication Technology  ,Information and Communications Technology,Corporate and Support Services,IT AVA Non - SLA,150.00,402001,13001
14/02/2022,ZAV703022,5,12351,Getech,270000,Information Communication Technology  ,Information and Communications Technology,Corporate and Support Services,IT AVA Non - SLA,765.00,402001,13001
24/02/2022,ZAV703510,1,9071,JTRS Ltd,270000,Information Communication Technology  ,Information and Communications Technology,Corporate and Support Services,IT AVA Non - SLA,"5,420.00",402001,13001
10/03/2022,ZAV704202,1,35,CBC Computer Systems Ltd,270000,Information Communication Technology  ,Information and Communications Technology,Corporate and Support Services,IT AVA Non - SLA,"19,075.00",402001,13001
10/03/2022,ZAV704202,2,35,CBC Computer Systems Ltd,270000,Information Communication Technology  ,Information and Communications Technology,Corporate and Support Services,IT AVA Non - SLA,"1,260.00",402001,13001
17/03/2022,ZAV704532,1,12351,Getech,270000,Information Communication Technology  ,Information and Communications Technology,Corporate and Support Services,IT AVA Non - SLA,"24,310.00",402001,13001
17/03/2022,ZAV704532,2,12351,Getech,270000,Information Communication Technology  ,Information and Communications Technology,Corporate and Support Services,IT AVA Non - SLA,"4,590.00",402001,13001
17/03/2022,ZAV704532,3,12351,Getech,270000,Information Communication Technology  ,Information and Communications Technology,Corporate and Support Services,IT AVA Non - SLA,850.00,402001,13001
23/03/2022,ZAV704849,1,35,CBC Computer Systems Ltd,270000,Information Communication Technology  ,Information and Communications Technology,Corporate and Support Services,IT AVA Non - SLA,"10,400.00",402001,13001
23/03/2022,ZAV704849,2,35,CBC Computer Systems Ltd,270000,Information Communication Technology  ,Information and Communications Technology,Corporate and Support Services,IT AVA Non - SLA,624.00,402001,13001
25/03/2022,ZAV704951,1,5535,Elementary Technology Ltd,210000,Furniture & Soft Furnishings  ,Furniture and Equipment,Corporate and Support Services,IT AVA Non - SLA,375.00,400105,13001
25/03/2022,ZAV704951,2,5535,Elementary Technology Ltd,210000,Furniture & Soft Furnishings  ,Furniture and Equipment,Corporate and Support Services,IT AVA Non - SLA,29.00,400105,13001
25/03/2022,ZAV704951,3,5535,Elementary Technology Ltd,210000,Furniture & Soft Furnishings  ,Furniture and Equipment,Corporate and Support Services,IT AVA Non - SLA,94.00,400105,13001
25/03/2022,ZAV704951,4,5535,Elementary Technology Ltd,210000,Furniture & Soft Furnishings  ,Furniture and Equipment,Corporate and Support Services,IT AVA Non - SLA,"1,395.00",400105,13001
25/03/2022,ZAV704951,5,5535,Elementary Technology Ltd,210000,Furniture & Soft Furnishings  ,Furniture and Equipment,Corporate and Support Services,IT AVA Non - SLA,"1,775.00",400105,13001
25/03/2022,ZAV704951,6,5535,Elementary Technology Ltd,210000,Furniture & Soft Furnishings  ,Furniture and Equipment,Corporate and Support Services,IT AVA Non - SLA,"3,295.00",400105,13001
25/03/2022,ZAV704951,7,5535,Elementary Technology Ltd,210000,Furniture & Soft Furnishings  ,Furniture and Equipment,Corporate and Support Services,IT AVA Non - SLA,699.00,400105,13001
25/03/2022,ZAV704951,8,5535,Elementary Technology Ltd,210000,Furniture & Soft Furnishings  ,Furniture and Equipment,Corporate and Support Services,IT AVA Non - SLA,845.00,400105,13001
25/03/2022,ZAV704951,9,5535,Elementary Technology Ltd,210000,Furniture & Soft Furnishings  ,Furniture and Equipment,Corporate and Support Services,IT AVA Non - SLA,"1,395.00",400105,13001
25/03/2022,ZAV704951,10,5535,Elementary Technology Ltd,210000,Furniture & Soft Furnishings  ,Furniture and Equipment,Corporate and Support Services,IT AVA Non - SLA,"2,845.00",400105,13001
25/03/2022,ZAV704951,11,5535,Elementary Technology Ltd,210000,Furniture & Soft Furnishings  ,Furniture and Equipment,Corporate and Support Services,IT AVA Non - SLA,"4,695.00",400105,13001
25/03/2022,ZAV704951,12,5535,Elementary Technology Ltd,210000,Furniture & Soft Furnishings  ,Furniture and Equipment,Corporate and Support Services,IT AVA Non - SLA,725.00,400105,13001
25/03/2022,ZAV704951,13,5535,Elementary Technology Ltd,210000,Furniture & Soft Furnishings  ,Furniture and Equipment,Corporate and Support Services,IT AVA Non - SLA,"4,625.00",400105,13001
25/03/2022,ZAV704951,14,5535,Elementary Technology Ltd,210000,Furniture & Soft Furnishings  ,Furniture and Equipment,Corporate and Support Services,IT AVA Non - SLA,845.00,400105,13001
25/03/2022,ZAV704951,15,5535,Elementary Technology Ltd,210000,Furniture & Soft Furnishings  ,Furniture and Equipment,Corporate and Support Services,IT AVA Non - SLA,630.00,400105,13001
25/03/2022,ZAV704951,16,5535,Elementary Technology Ltd,210000,Furniture & Soft Furnishings  ,Furniture and Equipment,Corporate and Support Services,IT AVA Non - SLA,325.00,400105,13001
25/03/2022,ZAV704951,17,5535,Elementary Technology Ltd,210000,Furniture & Soft Furnishings  ,Furniture and Equipment,Corporate and Support Services,IT AVA Non - SLA,"1,625.00",400105,13001
25/03/2022,ZAV704951,18,5535,Elementary Technology Ltd,210000,Furniture & Soft Furnishings  ,Furniture and Equipment,Corporate and Support Services,IT AVA Non - SLA,295.00,400105,13001
25/03/2022,ZAV704951,19,5535,Elementary Technology Ltd,210000,Furniture & Soft Furnishings  ,Furniture and Equipment,Corporate and Support Services,IT AVA Non - SLA,150.00,400105,13001
25/03/2022,ZAV704951,20,5535,Elementary Technology Ltd,210000,Furniture & Soft Furnishings  ,Furniture and Equipment,Corporate and Support Services,IT AVA Non - SLA,415.00,400105,13001
25/03/2022,ZAV704951,21,5535,Elementary Technology Ltd,210000,Furniture & Soft Furnishings  ,Furniture and Equipment,Corporate and Support Services,IT AVA Non - SLA,165.00,400105,13001
25/03/2022,ZAV704951,22,5535,Elementary Technology Ltd,210000,Furniture & Soft Furnishings  ,Furniture and Equipment,Corporate and Support Services,IT AVA Non - SLA,69.00,400105,13001
25/03/2022,ZAV704951,23,5535,Elementary Technology Ltd,210000,Furniture & Soft Furnishings  ,Furniture and Equipment,Corporate and Support Services,IT AVA Non - SLA,25.00,400105,13001
25/03/2022,ZAV704951,24,5535,Elementary Technology Ltd,210000,Furniture & Soft Furnishings  ,Furniture and Equipment,Corporate and Support Services,IT AVA Non - SLA,85.00,400105,13001
07/01/2022,ZES701297,1,544,Phoenix Software Ltd,270000,Information Communication Technology  ,Information and Communications Technology,Corporate and Support Services,IT Microsoft,"4,869.00",402001,13091
07/01/2022,ZES701297,2,544,Phoenix Software Ltd,270000,Information Communication Technology  ,Information and Communications Technology,Corporate and Support Services,IT Microsoft,"8,034.00",402001,13091
12/01/2022,ZES701500,1,544,Phoenix Software Ltd,270000,Information Communication Technology  ,Information and Communications Technology,Corporate and Support Services,IT Microsoft,"59,040.00",402001,13091
12/01/2022,ZES701509,1,7130,Vanix,270000,Information Communication Technology  ,Information and Communications Technology,Corporate and Support Services,IT Infrastructure,"8,328.00",402002,11324
17/01/2022,ZES701695,1,2927,XMA Ltd,270000,Information Communication Technology  ,Information and Communications Technology,Corporate and Support Services,IT Infrastructure,"18,487.65",402002,11324
17/01/2022,ZES701696,1,13431,Specops Software Ltd,270000,Information Communication Technology  ,Information and Communications Technology,Corporate and Support Services,IT Infrastructure,"5,798.52",402002,11324
17/01/2022,ZES701697,1,544,Phoenix Software Ltd,270000,Information Communication Technology  ,Information and Communications Technology,Corporate and Support Services,IT Infrastructure,"9,920.88",402002,11324
19/01/2022,ZES701833,1,7753,Netcall Technology Limited,270000,Information Communication Technology  ,Information and Communications Technology,Corporate and Support Services,IT Systems,"22,703.00",402002,12503
19/01/2022,ZES701833,2,7753,Netcall Technology Limited,270000,Information Communication Technology  ,Information and Communications Technology,Corporate and Support Services,IT Systems,"89,098.00",402002,12503
19/01/2022,ZES701833,3,7753,Netcall Technology Limited,270000,Information Communication Technology  ,Information and Communications Technology,Corporate and Support Services,IT Systems,"85,800.00",402002,12503
10/02/2022,ZES702869,1,544,Phoenix Software Ltd,270000,Information Communication Technology  ,Information and Communications Technology,Corporate and Support Services,IT Microsoft,"4,869.00",402001,13091
10/02/2022,ZES702869,2,544,Phoenix Software Ltd,270000,Information Communication Technology  ,Information and Communications Technology,Corporate and Support Services,IT Microsoft,"8,034.00",402001,13091
24/02/2022,ZES703563,1,544,Phoenix Software Ltd,270000,Information Communication Technology  ,Information and Communications Technology,Corporate and Support Services,IT Infrastructure,"5,370.22",402001,11324
03/03/2022,ZES703863,1,12251,Aristi Limited,270000,Information Communication Technology  ,Information and Communications Technology,Corporate and Support Services,IT Infrastructure,845.00,402001,11324
03/03/2022,ZES703863,2,12251,Aristi Limited,270000,Information Communication Technology  ,Information and Communications Technology,Corporate and Support Services,IT Infrastructure,"1,267.50",402001,11324
03/03/2022,ZES703863,3,12251,Aristi Limited,270000,Information Communication Technology  ,Information and Communications Technology,Corporate and Support Services,IT Infrastructure,422.50,402001,11324
03/03/2022,ZES703863,4,12251,Aristi Limited,270000,Information Communication Technology  ,Information and Communications Technology,Corporate and Support Services,IT Infrastructure,845.00,402001,11324
03/03/2022,ZES703863,5,12251,Aristi Limited,270000,Information Communication Technology  ,Information and Communications Technology,Corporate and Support Services,IT Infrastructure,422.50,402001,11324
03/03/2022,ZES703863,6,12251,Aristi Limited,270000,Information Communication Technology  ,Information and Communications Technology,Corporate and Support Services,IT Infrastructure,"1,267.50",402001,11324
03/03/2022,ZES703863,7,12251,Aristi Limited,270000,Information Communication Technology  ,Information and Communications Technology,Corporate and Support Services,IT Infrastructure,"1,901.25",402001,11324
22/03/2022,ZES704780,1,7130,Vanix,390000,"Works - Construction, Repair & Maintenance  ",Repairs and Maintenance,Corporate and Support Services,Public Libraries Gen,"9,167.24",200123,11329
22/03/2022,ZES704780,2,7130,Vanix,390000,"Works - Construction, Repair & Maintenance  ",Repairs and Maintenance,Corporate and Support Services,Public Libraries Gen,703.40,200123,11329
22/03/2022,ZES704792,1,544,Phoenix Software Ltd,270000,Information Communication Technology  ,Information and Communications Technology,Corporate and Support Services,IT Microsoft,"4,869.00",402001,13091
22/03/2022,ZES704792,2,544,Phoenix Software Ltd,270000,Information Communication Technology  ,Information and Communications Technology,Corporate and Support Services,IT Microsoft,"8,034.00",402001,13091
30/03/2022,ZES705215,1,7712,Caretower Ltd,270000,Information Communication Technology  ,Information and Communications Technology,Corporate and Support Services,IT Infrastructure,"6,929.00",402002,11324
02/03/2022,ZFC703794,1,588,H Jenkinson & Co Ltd,210000,Furniture & Soft Furnishings  ,Furniture and Equipment,#N/A,#N/A,"18,004.76",400100,C.11502.113
04/01/2022,ZHS701204,1,8323,Wilkinson Cowan Partnership Lt,390000,"Works - Construction, Repair & Maintenance  ",Capital Expenditure - Works,#N/A,#N/A,"13,500.00",200311,C.10923.002
30/03/2022,ZHS705181,1,8323,Wilkinson Cowan Partnership Lt,390000,"Works - Construction, Repair & Maintenance  ",Capital Expenditure - Works,#N/A,#N/A,"6,268.50",200311,C.10969.002
02/02/2022,ZPC702420,1,11021,The Laurus Trust (Cheadle Hulm,310000,Healthcare  ,Third party payments - Public Sector,Services to People,Pendlebury PRU,"7,066.74",500402,10318
02/02/2022,ZPC702420,2,11021,The Laurus Trust (Cheadle Hulm,310000,Healthcare  ,Third party payments - Public Sector,Services to People,Pendlebury PRU,"7,066.74",500402,10318
02/02/2022,ZPC702420,3,11021,The Laurus Trust (Cheadle Hulm,310000,Healthcare  ,Third party payments - Public Sector,Services to People,Pendlebury PRU,"7,066.44",500402,10318
02/02/2022,ZPC702420,4,11021,The Laurus Trust (Cheadle Hulm,310000,Healthcare  ,Third party payments - Public Sector,Services to People,Pendlebury PRU,"7,066.74",500402,10318
02/02/2022,ZPC702420,5,11021,The Laurus Trust (Cheadle Hulm,310000,Healthcare  ,Third party payments - Public Sector,Services to People,Pendlebury PRU,"7,066.74",500402,10318
02/02/2022,ZPC702420,6,11021,The Laurus Trust (Cheadle Hulm,310000,Healthcare  ,Third party payments - Public Sector,Services to People,Pendlebury PRU,"7,066.74",500402,10318
02/02/2022,ZPC702420,7,11021,The Laurus Trust (Cheadle Hulm,310000,Healthcare  ,Third party payments - Public Sector,Services to People,Pendlebury PRU,"7,066.74",500402,10318
02/02/2022,ZPC702420,8,11021,The Laurus Trust (Cheadle Hulm,310000,Healthcare  ,Third party payments - Public Sector,Services to People,Pendlebury PRU,"7,066.74",500402,10318
13/01/2022,ZSB701549,1,564,Metro Taxis Ltd,381600,Vehicle Management Hire/Leasing ,Leasing /Transport Hire,Services to People,Highfields PRU,"6,485.65",300302,10329
07/02/2022,ZSB702688,1,5981,EUROLYNX (TAXIS) LTD,381600,Vehicle Management Hire/Leasing ,Leasing /Transport Hire,Services to People,Highfields PRU,"5,563.80",300302,10329
22/03/2022,ZSB704819,1,15074,Bespoke Shelters,181800,Environmental Services Technical Equipment ,Furniture and Equipment,Services to People,Highfields PRU,"7,280.00",400110,10329
22/03/2022,ZSB704819,2,15074,Bespoke Shelters,181800,Environmental Services Technical Equipment ,Furniture and Equipment,Services to People,Highfields PRU,"7,430.00",400110,10329
22/03/2022,ZSB704820,1,15074,Bespoke Shelters,181800,Environmental Services Technical Equipment ,Furniture and Equipment,Services to People,Highfields PRU,"9,690.00",400110,10329
22/03/2022,ZSB704820,2,15074,Bespoke Shelters,181800,Environmental Services Technical Equipment ,Furniture and Equipment,Services to People,Highfields PRU,"3,280.00",400110,10329
22/03/2022,ZSB704821,1,15074,Bespoke Shelters,181800,Environmental Services Technical Equipment ,Furniture and Equipment,Services to People,Highfields PRU,"9,250.00",400110,10329
22/03/2022,ZSB704821,2,15074,Bespoke Shelters,181800,Environmental Services Technical Equipment ,Furniture and Equipment,Services to People,Highfields PRU,920.00,400110,10329
28/03/2022,ZSB705062,1,15074,Bespoke Shelters,181800,Environmental Services Technical Equipment ,Furniture and Equipment,Services to People,Highfields PRU,"7,950.00",400110,10329
28/03/2022,ZSB705062,2,15074,Bespoke Shelters,181800,Environmental Services Technical Equipment ,Furniture and Equipment,Services to People,Highfields PRU,"1,290.00",400110,10329
31/03/2022,ZSB705300,1,15080,Mock Rock,181800,Environmental Services Technical Equipment ,Furniture and Equipment,Services to People,Highfields PRU,"6,995.00",400110,10329
08/01/2022,ZZC701320,1,13458,Yorkshire Adoption Agency,320000,Social Community Care Supplies & Services  ,Care Payments,Services to People,RAA Adoption Count,"32,320.00",530306,12957
17/01/2022,ZZC701683,1,14867,SpeedAdmin ApS,390000,"Works - Construction, Repair & Maintenance  ",Fees and Charges,Services to People,SI - Music Service,"5,100.00",401017,10417
17/01/2022,ZZC701733,1,14063,TSOM Group,261500,Human Resources Training & Conferences ,Fees and Charges,Services to People,GO/HG Client spend,"6,475.00",401024,13147
17/01/2022,ZZC701733,2,14063,TSOM Group,261500,Human Resources Training & Conferences ,Fees and Charges,Services to People,GO/HG Client spend,"5,100.00",401024,13147
08/02/2022,ZZC702749,1,11417,Parents and Children Together,320000,Social Community Care Supplies & Services  ,Care Payments,Services to People,RAA Adoption Count,"35,552.00",530306,12957
08/02/2022,ZZC702750,1,8766,ADOPTION MATTERS NORTHWEST,320000,Social Community Care Supplies & Services  ,Care Payments,Services to People,RAA Adoption Count,"32,320.00",530306,12957
08/02/2022,ZZC702751,1,12536,CARITAS CARE,320000,Social Community Care Supplies & Services  ,Care Payments,Services to People,RAA Adoption Count,"32,320.00",530306,12957
08/02/2022,ZZC702777,1,8881,Family Futures CIC,999999,Fees and Charges,Fees and Charges,Services to People,RAA - ASF Grant,"5,000.00",401035,12968
08/03/2022,ZZC704075,1,7030,MANCHESTER CITY COUNCIL SHARED,320000,Social Community Care Supplies & Services  ,Care Payments,Services to People,FP - Fostering,"6,700.00",530322,11441
24/03/2022,ZZC704905,1,12106,KMS Media,190000,Facilities & Management Services  ,Office Expenses,Services to People,RAA Adoption Count,"6,562.00",400700,12957
24/03/2022,ZZC704907,1,12705,Acorn Therapy,999999,Fees and Charges,Fees and Charges,Services to People,RAA - ASF Grant,"7,650.00",401035,12968
24/03/2022,ZZC704908,1,12675,Tiptoes Child Therapy Services,999999,Fees and Charges,Fees and Charges,Services to People,RAA - ASF Grant,"5,000.00",401035,12968
24/03/2022,ZZC704909,1,12675,Tiptoes Child Therapy Services,999999,Fees and Charges,Fees and Charges,Services to People,RAA - ASF Grant,"5,000.00",401035,12968
24/03/2022,ZZC704910,1,12298,One Education Ltd,999999,Fees and Charges,Fees and Charges,Services to People,RAA - ASF Grant,"5,265.00",401035,12968
24/03/2022,ZZC704911,1,12675,Tiptoes Child Therapy Services,999999,Fees and Charges,Fees and Charges,Services to People,RAA - ASF Grant,"5,000.00",401035,12968
24/03/2022,ZZC704912,1,12675,Tiptoes Child Therapy Services,999999,Fees and Charges,Fees and Charges,Services to People,RAA - ASF Grant,"5,000.00",401035,12968
24/03/2022,ZZC704913,1,12675,Tiptoes Child Therapy Services,999999,Fees and Charges,Fees and Charges,Services to People,RAA - ASF Grant,"5,000.00",401035,12968
24/03/2022,ZZC704918,1,12675,Tiptoes Child Therapy Services,999999,Fees and Charges,Fees and Charges,Services to People,RAA - ASF Grant,"10,000.00",401035,12968
24/03/2022,ZZC704929,1,1756,CoramBAAF,200000,Financial Services  ,Fees and Charges,Services to People,RAA Adoption Count,"11,841.03",402401,12957
28/03/2022,ZZC705005,1,12675,Tiptoes Child Therapy Services,999999,Fees and Charges,Fees and Charges,Services to People,RAA - ASF Grant,"5,000.00",401035,12968
29/03/2022,ZZC705100,1,12675,Tiptoes Child Therapy Services,999999,Fees and Charges,Fees and Charges,Services to People,RAA - ASF Grant,"5,000.00",401035,12968
29/03/2022,ZZC705101,1,12675,Tiptoes Child Therapy Services,999999,Fees and Charges,Fees and Charges,Services to People,RAA - ASF Grant,"5,000.00",401035,12968
29/03/2022,ZZC705102,1,12675,Tiptoes Child Therapy Services,999999,Fees and Charges,Fees and Charges,Services to People,RAA - ASF Grant,"10,000.00",401035,12968
31/03/2022,ZZC705238,1,15093,The Retreat,999999,Fees and Charges,Fees and Charges,Services to People,RAA - ASF Grant,"5,000.00",401035,12968
04/01/2022,ZZH701181,1,6449,Aptean,270000,Information Communication Technology  ,Information and Communications Technology,Corporate and Support Services,Citizen Foc. & Comp,"5,857.50",402001,13083
04/01/2022,ZZH701184,1,261,Elcom Systems Ltd,270000,Information Communication Technology  ,Information and Communications Technology,Corporate and Support Services,I.T Business Relat,"42,754.27",402001,13044
04/01/2022,ZZH701185,1,4625,SAP (UK) Ltd,270000,Information Communication Technology  ,Information and Communications Technology,Corporate and Support Services,I.T Business Relat,"68,698.60",402001,13044
04/01/2022,ZZH701190,1,14941,Green End Primary School,170000,Education  ,Third party payments - Public Sector,Services to People,OLA pupils,"7,814.00",500304,10371
04/01/2022,ZZH701192,1,14942,Wilmslow Preparatory School,170000,Education  ,Third party payments - Public Sector,Services to People,OLA pupils,"6,168.00",500304,10371
04/01/2022,ZZH701205,1,3529,Totally Local Company Ltd,181800,Environmental Services Technical Equipment ,Furniture and Equipment,Services to Place,Climate Change Now,"8,362.00",400110,13112
04/01/2022,ZZH701205,2,3529,Totally Local Company Ltd,181800,Environmental Services Technical Equipment ,Furniture and Equipment,Services to Place,Climate Change Now,"1,385.29",400110,13112
05/01/2022,ZZH701207,1,8106,Tarmac Trading Ltd,390000,"Works - Construction, Repair & Maintenance  ",Capital Expenditure - Works,#N/A,#N/A,"1,151,342.33",200304,C.00710.203
05/01/2022,ZZH701209,1,3529,Totally Local Company Ltd,181800,Environmental Services Technical Equipment ,Furniture and Equipment,#N/A,#N/A,"6,057.45",400110,C.01194.203
05/01/2022,ZZH701226,1,12533,Priory Group - Northern Office,310000,Healthcare  ,Third party payments - Public Sector,Services to People,Hospital Tuition,"3,220.00",500402,10370
05/01/2022,ZZH701226,2,12533,Priory Group - Northern Office,310000,Healthcare  ,Third party payments - Public Sector,Services to People,Hospital Tuition,"3,128.00",500402,10370
05/01/2022,ZZH701226,3,12533,Priory Group - Northern Office,310000,Healthcare  ,Third party payments - Public Sector,Services to People,Hospital Tuition,"1,472.00",500402,10370
05/01/2022,ZZH701234,1,8733,ELF SOFTWARE LTD,270000,Information Communication Technology  ,Information and Communications Technology,Services to Place,Property Client Acct,"7,086.45",402001,12328
05/01/2022,ZZH701242,1,13445,All Pump Solutions,230000,Highway Equipment & Materials�   ,Highways Maintenance,Services to Place,A6 Marr Maintenance,"5,025.00",202050,13039
06/01/2022,ZZH701259,1,1644,Tameside MBC,170000,Education  ,Third party payments - Public Sector,Services to People,SEN Independent Sch,"9,556.00",500304,10372
06/01/2022,ZZH701259,2,1644,Tameside MBC,170000,Education  ,Third party payments - Public Sector,Services to People,SEN Independent Sch,"19,131.00",500304,10372
06/01/2022,ZZH701259,3,1644,Tameside MBC,170000,Education  ,Third party payments - Public Sector,Services to People,SEN Independent Sch,"2,635.00",500304,10372
06/01/2022,ZZH701259,4,1644,Tameside MBC,170000,Education  ,Third party payments - Public Sector,Services to People,SEN Independent Sch,"14,348.00",500304,10372
06/01/2022,ZZH701259,5,1644,Tameside MBC,170000,Education  ,Third party payments - Public Sector,Services to People,SEN Independent Sch,"9,566.00",500304,10372
06/01/2022,ZZH701259,6,1644,Tameside MBC,170000,Education  ,Third party payments - Public Sector,Services to People,SEN Independent Sch,"4,391.00",500304,10372
06/01/2022,ZZH701259,7,1644,Tameside MBC,170000,Education  ,Third party payments - Public Sector,Services to People,SEN Independent Sch,"4,328.00",500304,10372
06/01/2022,ZZH701267,1,683,AECOM Limited,150000,Consultancy   ,Professional Fees,#N/A,#N/A,"5,191.20",401007,C.01269.201
06/01/2022,ZZH701274,1,1722,The Together Trust Centre,261500,Human Resources Training & Conferences ,Fees and Charges,Services to People,SEN Independent Sch,"14,566.67",401024,10372
06/01/2022,ZZH701275,1,1722,The Together Trust Centre,261500,Human Resources Training & Conferences ,Fees and Charges,Services to People,SEN Independent Sch,"15,833.34",401024,10372
06/01/2022,ZZH701276,1,1722,The Together Trust Centre,261500,Human Resources Training & Conferences ,Fees and Charges,Services to People,SEN Independent Sch,"19,642.00",401024,10372
07/01/2022,ZZH701303,1,3529,Totally Local Company Ltd,230000,Highway Equipment & Materials�   ,Highways Maintenance,Services to Place,Berevement Services,"5,940.00",202056,11285
07/01/2022,ZZH701313,1,14803,Care Together Consultancy Limi,150000,Consultancy   ,Professional Fees,Services to People,REaCH SS Manager,"4,589.50",401020,13069
07/01/2022,ZZH701313,2,14803,Care Together Consultancy Limi,150000,Consultancy   ,Professional Fees,Services to People,REaCH SS Manager,"4,489.00",401020,13069
10/01/2022,ZZH701348,1,9149,Public-i,#N/A,#N/A,#N/A,Corporate and Support Services,Members Services,"6,606.40",400999,11111
10/01/2022,ZZH701372,1,14934,Better Communications CIC,150000,Consultancy   ,Professional Fees,Services to People,SEN Specific support,"20,325.00",401020,10300
10/01/2022,ZZH701379,1,14527,Data Images Software Solutions,150000,Consultancy   ,Professional Fees,Services to People,SEN Trans-Staffing,"11,000.00",401020,10759
10/01/2022,ZZH701391,1,13860,Howard Lynn Property Ltd,261400,Human Resources Temporary & Agency Staff ,Agency Staff,Services to Place,Property Client Acct,"5,670.00",100290,12328
10/01/2022,ZZH701408,1,8806,Manchester City Council Int,320000,Social Community Care Supplies & Services  ,Care Payments,Services to People,FP - Fostering,"22,829.71",530323,11441
10/01/2022,ZZH701408,2,8806,Manchester City Council Int,320000,Social Community Care Supplies & Services  ,Care Payments,Services to People,FP - Fostering,252.00,530323,11441
10/01/2022,ZZH701408,3,8806,Manchester City Council Int,320000,Social Community Care Supplies & Services  ,Care Payments,Services to People,FP - Fostering,252.00,530323,11441
10/01/2022,ZZH701408,4,8806,Manchester City Council Int,320000,Social Community Care Supplies & Services  ,Care Payments,Services to People,FP - Fostering,504.00,530323,11441
10/01/2022,ZZH701408,5,8806,Manchester City Council Int,320000,Social Community Care Supplies & Services  ,Care Payments,Services to People,FP - Fostering,"9,302.86",530323,11441
10/01/2022,ZZH701408,6,8806,Manchester City Council Int,320000,Social Community Care Supplies & Services  ,Care Payments,Services to People,FP - Fostering,"10,649.00",530323,11441
10/01/2022,ZZH701408,7,8806,Manchester City Council Int,320000,Social Community Care Supplies & Services  ,Care Payments,Services to People,FP - Fostering,257.00,530323,11441
10/01/2022,ZZH701408,8,8806,Manchester City Council Int,320000,Social Community Care Supplies & Services  ,Care Payments,Services to People,FP - Fostering,257.00,530323,11441
10/01/2022,ZZH701408,9,8806,Manchester City Council Int,320000,Social Community Care Supplies & Services  ,Care Payments,Services to People,FP - Fostering,514.00,530323,11441
10/01/2022,ZZH701408,10,8806,Manchester City Council Int,320000,Social Community Care Supplies & Services  ,Care Payments,Services to People,FP - Fostering,"4,255.00",530323,11441
11/01/2022,ZZH701425,1,6967,Wilde Consultants Ltd,150000,Consultancy   ,Professional Fees,#N/A,#N/A,"6,621.25",401007,C.01179.202
11/01/2022,ZZH701433,1,12514,Renaissance,150000,Consultancy   ,Professional Fees,#N/A,#N/A,"15,500.00",401020,C.10932.005
11/01/2022,ZZH701434,1,3529,Totally Local Company Ltd,390000,"Works - Construction, Repair & Maintenance  ",Capital Expenditure - Works,Services to Place,Highway Structs R+R,"5,617.50",200304,11975
11/01/2022,ZZH701469,1,10402,Brabners LLP,280000,Legal Services  ,Legal Fees,Corporate and Support Services,Legal Fees Budget,"8,000.00",401016,12271
12/01/2022,ZZH701487,1,628,Life Leisure,150000,Consultancy   ,Professional Fees,Services to People,PH-Local Pilot,"17,909.04",401020,13047
12/01/2022,ZZH701495,1,14196,Grassroots Recruitment Ltd,190000,Facilities & Management Services  ,Publicity and Promotion,Services to Place,Employment Initiativ,"80,000.00",401800,12775
12/01/2022,ZZH701501,1,11058,Stockport Town Centre Business,181800,Environmental Services Technical Equipment ,Furniture and Equipment,Services to Place,Directorate,"7,500.00",400111,10106
13/01/2022,ZZH701576,1,5014,The Compost Bag Company Ltd,182020,Environmental Services Waste Management,Waste Management Equipment,Services to Place,Food ContrsHouse Bag,"65,899.01",400401,10865
13/01/2022,ZZH701578,1,14951,TERMSTALL LTD,390000,"Works - Construction, Repair & Maintenance  ",Repairs and Maintenance,Services to Place,Allotments-General,"12,285.00",200123,11167
13/01/2022,ZZH701586,1,3529,Totally Local Company Ltd,390000,Supplies and services,Supplies and services,#N/A,#N/A,"115,528.44",401600,C.01353.202
13/01/2022,ZZH701596,1,14536,W J North Limited,390000,Supplies and services,Supplies and services,#N/A,#N/A,"8,300.38",401600,C.01317.203
13/01/2022,ZZH701609,1,6117,QA Research,999999,Social Community Care Supplies & Services  ,Service Contract Payments,Corporate and Support Services,Public Libraries Gen,"8,500.00",561704,11329
14/01/2022,ZZH701617,1,7817,A Bee Electrical Ltd,390000,"Works - Construction, Repair & Maintenance  ",Repairs and Maintenance,#N/A,#N/A,"302,969.56",200123,C.11516.017
14/01/2022,ZZH701621,1,14317,Ridge and Partners LLP,150000,Consultancy   ,Professional Fees,#N/A,#N/A,"14,650.00",401020,C.10932.005
14/01/2022,ZZH701633,1,6098,SWARCO Traffic Ltd,230000,Highway Equipment & Materials�   ,Highways Maintenance,Services to Place,Highway Walls & Safe,"24,033.47",202052,11996
14/01/2022,ZZH701634,1,6116,Atkins Limited,150000,Consultancy   ,Professional Fees,#N/A,#N/A,"57,505.00",401007,C.01437.201
14/01/2022,ZZH701636,1,3529,Totally Local Company Ltd,390000,"Works - Construction, Repair & Maintenance  ",Capital Expenditure - Works,#N/A,#N/A,"11,999.35",200304,C.01175.203
14/01/2022,ZZH701637,1,12105,Greater Manchester Combine,280000,Legal Services  ,Legal Fees,#N/A,#N/A,"13,879.00",401016,C.01278.201
14/01/2022,ZZH701642,1,5915,Atkins Global Limited,150000,Consultancy   ,Professional Fees,Services to Place,Highways-Network Man,"13,473.40",401007,11968
14/01/2022,ZZH701643,1,683,AECOM Limited,150000,Consultancy   ,Professional Fees,#N/A,#N/A,"33,386.80",401007,C.01236.201
14/01/2022,ZZH701663,1,14804,CAN Digital Solutions Ltd,190000,Facilities & Management Services  ,Publicity and Promotion,Services to People,Community Champions,"5,600.00",401803,13103
17/01/2022,ZZH701701,1,14955,VME LTD,#N/A,#N/A,#N/A,Services to Place,Investing in Growth,"20,946.00",400999,10102
17/01/2022,ZZH701712,1,2642,Read - The Reading Agency,171113,Education Library Books ,Library Equipment,Corporate and Support Services,Library Dev & Res,"6,600.19",400207,11328
17/01/2022,ZZH701731,1,1342,UK Container Maintenance Ltd,182020,Environmental Services Waste Management,Waste Management Equipment,Services to Place,Bulk Container,969.00,400401,10883
17/01/2022,ZZH701731,2,1342,UK Container Maintenance Ltd,182020,Environmental Services Waste Management,Waste Management Equipment,Services to Place,Bulk Container,442.50,400401,10883
17/01/2022,ZZH701731,3,1342,UK Container Maintenance Ltd,182020,Environmental Services Waste Management,Waste Management Equipment,Services to Place,Bulk Container,590.00,400401,10883
17/01/2022,ZZH701731,4,1342,UK Container Maintenance Ltd,182020,Environmental Services Waste Management,Waste Management Equipment,Services to Place,Bulk Container,"3,841.50",400401,10883
18/01/2022,ZZH701738,1,2927,XMA Ltd,270000,Information Communication Technology  ,Information and Communications Technology,Corporate and Support Services,I.T Business Relat,"5,120.00",402001,13044
18/01/2022,ZZH701738,2,2927,XMA Ltd,270000,Information Communication Technology  ,Information and Communications Technology,Corporate and Support Services,I.T Business Relat,64.00,402001,13044
18/01/2022,ZZH701738,3,2927,XMA Ltd,270000,Information Communication Technology  ,Information and Communications Technology,Corporate and Support Services,I.T Business Relat,99.36,402001,13044
19/01/2022,ZZH701820,1,8233,MGB Plastics Ltd,182020,Environmental Services Waste Management,Waste Management Equipment,Services to Place,Wheelie Bins,"7,168.00",400401,10864
19/01/2022,ZZH701820,2,8233,MGB Plastics Ltd,182020,Environmental Services Waste Management,Waste Management Equipment,Services to Place,Wheelie Bins,"7,168.00",400401,10864
19/01/2022,ZZH701850,1,8106,Tarmac Trading Ltd,390000,Supplies and services,Supplies and services,#N/A,#N/A,"72,623.68",401600,C.01318.203
20/01/2022,ZZH701883,1,1644,Tameside MBC,190000,Facilities & Management Services  ,Third party payments - Private/Voluntary Sector,Services to People,PH - COMF Grant,"30,000.00",500810,13097
21/01/2022,ZZH701903,1,7915,Seddon Construction Ltd,390000,"Works - Construction, Repair & Maintenance  ",Repairs and Maintenance,#N/A,#N/A,"136,829.02",200123,C.11516.008
21/01/2022,ZZH701904,1,14968,CJ Sports Ltd,280000,Legal Services  ,Legal Fees,Services to Place,Property Client Acct,"5,625.00",401016,12328
21/01/2022,ZZH701931,1,6170,Greater Manchester TreeStation,390000,Supplies and services,Supplies and services,Services to Place,Land Dev-Werneth Os,"7,965.00",401600,11280
21/01/2022,ZZH701948,1,14536,W J North Limited,390000,Supplies and services,Supplies and services,#N/A,#N/A,"8,730.79",401600,C.01317.203
21/01/2022,ZZH701950,1,14536,W J North Limited,390000,Supplies and services,Supplies and services,#N/A,#N/A,"8,300.38",401600,C.01317.203
21/01/2022,ZZH701951,1,14536,W J North Limited,390000,Supplies and services,Supplies and services,#N/A,#N/A,"8,730.79",401600,C.01317.203
21/01/2022,ZZH701955,1,8106,Tarmac Trading Ltd,390000,Supplies and services,Supplies and services,#N/A,#N/A,"72,623.68",401600,C.01318.203
21/01/2022,ZZH701957,1,2927,XMA Ltd,270000,Information Communication Technology  ,Information and Communications Technology,Corporate and Support Services,KickStart Programme,"5,076.96",402001,13153
21/01/2022,ZZH701957,2,2927,XMA Ltd,270000,Information Communication Technology  ,Information and Communications Technology,Corporate and Support Services,KickStart Programme,56.00,402001,13153
21/01/2022,ZZH701957,3,2927,XMA Ltd,270000,Information Communication Technology  ,Information and Communications Technology,Corporate and Support Services,KickStart Programme,86.94,402001,13153
21/01/2022,ZZH701957,4,2927,XMA Ltd,270000,Information Communication Technology  ,Information and Communications Technology,Corporate and Support Services,KickStart Programme,129.92,402001,13153
21/01/2022,ZZH701957,5,2927,XMA Ltd,270000,Information Communication Technology  ,Information and Communications Technology,Corporate and Support Services,KickStart Programme,545.23,402001,13153
24/01/2022,ZZH701988,1,14243,Keys PCE Ltd,261500,Human Resources Training & Conferences ,Fees and Charges,Services to People,SEN Independent Sch,"15,080.00",401024,10372
24/01/2022,ZZH701998,1,3707,Salford City Council/Finance,999999,Third party payments - Public Sector,Third party payments - Public Sector,Services to People,Regional Imp Allianc,"36,100.00",500303,13031
24/01/2022,ZZH702013,1,14977,5 Plus Architects Limited,150000,Consultancy   ,Professional Fees,#N/A,#N/A,"48,000.00",401020,C.10932.005
24/01/2022,ZZH702015,1,5214,WSP GROUP PLC,390000,Supplies and services,Supplies and services,#N/A,#N/A,"11,600.00",401600,C.01471.201
24/01/2022,ZZH702018,1,270,Manchester Met University,999999,Fees and Charges,Fees and Charges,Services to People,YOS Non-Staffing,"8,500.00",402404,11503
24/01/2022,ZZH702021,1,1816,Seashell Trust,320000,Social Community Care Supplies & Services  ,Third party payments - Private/Voluntary Sector,Services to People,Top-up Fund Post 16,"11,949.00",402403,12724
25/01/2022,ZZH702033,1,3529,Totally Local Company Ltd,390000,"Works - Construction, Repair & Maintenance  ",Capital Expenditure - Works,#N/A,#N/A,"55,586.15",200304,C.10965
25/01/2022,ZZH702045,1,14619,Constellia Public Limited,390000,"Works - Construction, Repair & Maintenance  ",Repairs and Maintenance,#N/A,#N/A,"119,179.00",200123,C.11515
25/01/2022,ZZH702046,1,14619,Constellia Public Limited,390000,"Works - Construction, Repair & Maintenance  ",Repairs and Maintenance,#N/A,#N/A,"91,000.00",200123,C.11515
25/01/2022,ZZH702053,1,3873,WF EDUCATION GROUP LTD,171113,Education Library Books ,Library Equipment,Corporate and Support Services,Library Dev & Res,209.00,400207,11328
25/01/2022,ZZH702053,2,3873,WF EDUCATION GROUP LTD,171113,Education Library Books ,Library Equipment,Corporate and Support Services,Library Dev & Res,116.00,400207,11328
25/01/2022,ZZH702053,3,3873,WF EDUCATION GROUP LTD,171113,Education Library Books ,Library Equipment,Corporate and Support Services,Library Dev & Res,586.00,400207,11328
25/01/2022,ZZH702053,4,3873,WF EDUCATION GROUP LTD,171113,Education Library Books ,Library Equipment,Corporate and Support Services,Library Dev & Res,226.00,400207,11328
25/01/2022,ZZH702053,5,3873,WF EDUCATION GROUP LTD,171113,Education Library Books ,Library Equipment,Corporate and Support Services,Library Dev & Res,586.00,400207,11328
25/01/2022,ZZH702053,6,3873,WF EDUCATION GROUP LTD,171113,Education Library Books ,Library Equipment,Corporate and Support Services,Library Dev & Res,"1,170.00",400207,11328
25/01/2022,ZZH702053,7,3873,WF EDUCATION GROUP LTD,171113,Education Library Books ,Library Equipment,Corporate and Support Services,Library Dev & Res,320.00,400207,11328
25/01/2022,ZZH702053,8,3873,WF EDUCATION GROUP LTD,171113,Education Library Books ,Library Equipment,Corporate and Support Services,Library Dev & Res,732.00,400207,11328
25/01/2022,ZZH702053,9,3873,WF EDUCATION GROUP LTD,171113,Education Library Books ,Library Equipment,Corporate and Support Services,Library Dev & Res,732.00,400207,11328
25/01/2022,ZZH702053,10,3873,WF EDUCATION GROUP LTD,171113,Education Library Books ,Library Equipment,Corporate and Support Services,Library Dev & Res,118.00,400207,11328
25/01/2022,ZZH702053,11,3873,WF EDUCATION GROUP LTD,171113,Education Library Books ,Library Equipment,Corporate and Support Services,Library Dev & Res,203.00,400207,11328
25/01/2022,ZZH702053,12,3873,WF EDUCATION GROUP LTD,171113,Education Library Books ,Library Equipment,Corporate and Support Services,Library Dev & Res,52.25,400207,11328
25/01/2022,ZZH702053,13,3873,WF EDUCATION GROUP LTD,171113,Education Library Books ,Library Equipment,Corporate and Support Services,Library Dev & Res,89.00,400207,11328
25/01/2022,ZZH702063,1,12356,Specialist + Equine Bailiffs L,270000,Information Communication Technology  ,Information and Communications Technology,Services to Place,Mill Lane Cemetery,"18,060.00",402010,11287
25/01/2022,ZZH702066,1,14706,C J Founds,150000,Consultancy   ,Professional Fees,Services to Place,Rural Broadband,"20,300.00",401007,12768
26/01/2022,ZZH702098,1,14983,Herida Healthcare Ltd,#N/A,#N/A,#N/A,Services to People,Infection Control T5,"91,000.00",400999,13157
26/01/2022,ZZH702099,1,1799,Stockport Homes,181800,Environmental Services Technical Equipment ,Furniture and Equipment,Services to People,Preventative Tech'Gy,"350,000.00",400110,11011
26/01/2022,ZZH702100,1,1339,Stockport NHS Foundation Trust,999999,Fees and Charges,Fees and Charges,Services to People,SNC,"5,711.94",402404,12929
26/01/2022,ZZH702101,1,1339,Stockport NHS Foundation Trust,999999,Fees and Charges,Fees and Charges,Services to People,SNC,"5,711.94",402404,12929
26/01/2022,ZZH702108,1,13244,Sovereign Trust,170000,Education  ,Third party payments - Public Sector,Services to People,OLA pupils,"26,004.03",500304,10371
26/01/2022,ZZH702109,1,13244,Sovereign Trust,170000,Education  ,Third party payments - Public Sector,Services to People,OLA pupils,"16,392.98",500304,10371
27/01/2022,ZZH702139,1,3529,Totally Local Company Ltd,390000,"Works - Construction, Repair & Maintenance  ",Capital Expenditure - Works,#N/A,#N/A,"10,289.40",200304,C.01420.203
27/01/2022,ZZH702140,1,7820,GMCA - GMUTC,230000,Highway Equipment & Materials�   ,Highways Maintenance,#N/A,#N/A,"8,810.57",202054,C.00932.203
27/01/2022,ZZH702167,1,10337,SIGNPOST STOCKPORT for CARERS,150000,Consultancy   ,Professional Fees,Services to People,iBCF,"56,666.00",401020,13000
27/01/2022,ZZH702175,1,2927,XMA Ltd,270000,Information Communication Technology  ,Information and Communications Technology,Services to Place,Property Client Acct,"5,263.82",402001,12328
27/01/2022,ZZH702175,2,2927,XMA Ltd,270000,Information Communication Technology  ,Information and Communications Technology,Services to Place,Property Client Acct,16.00,402001,12328
27/01/2022,ZZH702183,1,35,CBC Computer Systems Ltd,270000,Information Communication Technology  ,Information and Communications Technology,Services to People,SF Senior Management,"16,794.75",402061,11486
27/01/2022,ZZH702183,2,35,CBC Computer Systems Ltd,270000,Information Communication Technology  ,Information and Communications Technology,Corporate and Support Services,IT Main,159.95,402061,11073
27/01/2022,ZZH702183,3,35,CBC Computer Systems Ltd,270000,Information Communication Technology  ,Information and Communications Technology,Corporate and Support Services,IT Main,159.95,402061,11073
31/01/2022,ZZH702251,1,13338,Britannic Technologies Ltd,270000,Information Communication Technology  ,Information and Communications Technology,Corporate and Support Services,Contact Centre & FPH,"37,680.00",402001,11065
31/01/2022,ZZH702255,1,3529,Totally Local Company Ltd,390000,Supplies and services,Supplies and services,Services to Place,Nature-Arboriculture,"7,150.00",401600,11281
31/01/2022,ZZH702263,1,3529,Totally Local Company Ltd,390000,"Works - Construction, Repair & Maintenance  ",Repairs and Maintenance,Services to Place,Gritting,"5,113.80",200187,12033
31/01/2022,ZZH702266,1,6967,Wilde Consultants Ltd,390000,"Works - Construction, Repair & Maintenance  ",Repairs and Maintenance,Services to Place,Highway Walls & Safe,"10,952.50",200123,11996
31/01/2022,ZZH702267,1,5384,Confirm Solutions Ltd,270000,Information Communication Technology  ,Information and Communications Technology,Services to Place,Invest in Growth,"91,020.00",402001,10091
31/01/2022,ZZH702268,1,865,Bethell Construction Ltd,390000,Supplies and services,Supplies and services,#N/A,#N/A,"168,314.21",401600,C.01447.203
31/01/2022,ZZH702278,1,4272,Civica UK Ltd,270000,Information Communication Technology  ,Information and Communications Technology,Corporate and Support Services,Bentax,"9,715.00",402001,11139
31/01/2022,ZZH702282,1,7025,CBRE Limited,150000,Consultancy   ,Professional Fees,Services to Place,Town deal Cheadle,"55,378.82",401020,13057
31/01/2022,ZZH702297,1,6748,GEORGE COX & SONS LTD,390000,Supplies and services,Supplies and services,#N/A,#N/A,"419,361.30",401600,C.01320.203
01/02/2022,ZZH702302,1,6967,Wilde Consultants Ltd,150000,Consultancy   ,Professional Fees,Services to Place,Highway Structs R+R,"12,073.00",401007,11975
01/02/2022,ZZH702314,1,3284,Stockport CP Ltd t/a Supportab,320000,Social Community Care Supplies & Services  ,Care Payments,Services to People,DP - Respite,"5,283.68",530358,11513
01/02/2022,ZZH702315,1,3284,Stockport CP Ltd t/a Supportab,320000,Social Community Care Supplies & Services  ,Care Payments,Services to People,DP - Respite,"6,092.85",530358,11513
01/02/2022,ZZH702329,1,13594,Southern Cross School,170000,Education  ,Third party payments - Public Sector,Services to People,OLA pupils,"10,000.00",500304,10371
01/02/2022,ZZH702330,1,13594,Southern Cross School,170000,Education  ,Third party payments - Public Sector,Services to People,OLA pupils,"10,000.00",500304,10371
01/02/2022,ZZH702337,1,4879,St Helens Borough Council,999999,Third party payments - Public Sector,Third party payments - Public Sector,Services to People,Regional Imp Allianc,"74,793.00",500303,13031
01/02/2022,ZZH702344,1,3529,Totally Local Company Ltd,390000,"Works - Construction, Repair & Maintenance  ",Capital Expenditure - Works,#N/A,#N/A,"85,694.76",200304,C.01284.203
01/02/2022,ZZH702358,1,10487,City Dressing,#N/A,#N/A,#N/A,Services to Place,Investing in Growth,"23,000.00",400999,10102
02/02/2022,ZZH702378,1,10349,InterWorks Europe Limited,270000,Information Communication Technology  ,Information and Communications Technology,Corporate and Support Services,Business Intelligenc,"28,825.00",402001,11872
02/02/2022,ZZH702378,2,10349,InterWorks Europe Limited,270000,Information Communication Technology  ,Information and Communications Technology,Corporate and Support Services,Business Intelligenc,"5,364.00",402001,11872
02/02/2022,ZZH702423,1,1722,The Together Trust Centre,261500,Human Resources Training & Conferences ,Fees and Charges,Services to People,SEN Independent Sch,"13,838.34",401024,10372
02/02/2022,ZZH702424,1,14996,Hayfield Primary School,170000,Education  ,Third party payments - Public Sector,Services to People,OLA pupils,"16,774.00",500304,10371
02/02/2022,ZZH702427,1,13138,The Barlow RC High School,170000,Education  ,Third party payments - Public Sector,Services to People,OLA pupils,"8,850.00",500304,10371
02/02/2022,ZZH702429,1,3529,Totally Local Company Ltd,240000,Horticultural  ,Grounds Maintenance,#N/A,#N/A,"5,928.00",202034,C.10775
02/02/2022,ZZH702441,1,2978,Teaching Personnel Ltd,261400,Human Resources Temporary & Agency Staff ,Agency Staff,Services to People,Home/Hospital Educ,"5,000.00",100290,12708
02/02/2022,ZZH702469,1,12608,Liquidlogic Limited,150000,Consultancy   ,Professional Fees,Corporate and Support Services,I.T Business Relat,"124,414.00",401007,13044
03/02/2022,ZZH702481,1,865,Bethell Construction Ltd,390000,Supplies and services,Supplies and services,#N/A,#N/A,"11,252.33",401600,C.01221.203
03/02/2022,ZZH702510,1,3529,Totally Local Company Ltd,390000,"Works - Construction, Repair & Maintenance  ",Capital Expenditure - Works,#N/A,#N/A,"5,012.00",200304,C.01420.203
03/02/2022,ZZH702530,1,3529,Totally Local Company Ltd,390000,Supplies and services,Supplies and services,Services to Place,SPB - Investment Est,"7,200.00",401600,10062
03/02/2022,ZZH702533,1,10402,Brabners LLP,280000,Legal Services  ,Legal Fees,Corporate and Support Services,Legal Fees Budget,"5,000.00",401016,12271
03/02/2022,ZZH702565,1,3529,Totally Local Company Ltd,381600,Vehicle Management Hire/Leasing ,Leasing /Transport Hire,Services to Place,Berevement Services,"5,000.00",300300,11285
03/02/2022,ZZH702572,1,544,Phoenix Software Ltd,270000,Information Communication Technology  ,Information and Communications Technology,Corporate and Support Services,IT Main,"5,899.10",402002,11073
03/02/2022,ZZH702573,1,12479,Jisc Services Ltd - Subscripti,270000,Information Communication Technology  ,Information and Communications Technology,Corporate and Support Services,IT Infrastructure,"8,929.82",402002,11324
03/02/2022,ZZH702573,2,12479,Jisc Services Ltd - Subscripti,270000,Information Communication Technology  ,Information and Communications Technology,Corporate and Support Services,IT Infrastructure,"2,000.00",402002,11324
03/02/2022,ZZH702576,1,10655,West March Systems Ltd,270000,Information Communication Technology  ,Information and Communications Technology,Services to Place,Contin Educ Service,"12,000.00",402010,10511
04/02/2022,ZZH702606,1,3529,Totally Local Company Ltd,181800,Environmental Services Technical Equipment ,Furniture and Equipment,#N/A,#N/A,"48,364.11",400110,C.01299.201
04/02/2022,ZZH702610,1,683,AECOM Limited,391114,"Works - Construction, Repair & Maintenance Buildings Surveys",Capital Expenditure - Fees,#N/A,#N/A,"16,256.25",200316,C.01312.201
04/02/2022,ZZH702611,1,3529,Totally Local Company Ltd,150000,Consultancy   ,Professional Fees,Services to Place,Highway Structs R+R,"75,000.00",401007,11975
04/02/2022,ZZH702642,1,5014,The Compost Bag Company Ltd,182020,Environmental Services Waste Management,Waste Management Equipment,Services to Place,Food ContrsHouse Bag,"263,596.03",400401,10865
07/02/2022,ZZH702666,1,9149,Public-i,#N/A,#N/A,#N/A,Corporate and Support Services,Members Services,"8,159.68",400999,11111
07/02/2022,ZZH702671,1,7048,Bridgeall Libraries Limited,171113,Education Library Books ,Library Equipment,Corporate and Support Services,Library Dev & Res,"8,749.00",400207,11328
07/02/2022,ZZH702674,1,3873,WF EDUCATION GROUP LTD,171113,Education Library Books ,Library Equipment,Corporate and Support Services,Library Dev & Res,"2,944.00",400207,11328
07/02/2022,ZZH702674,2,3873,WF EDUCATION GROUP LTD,171113,Education Library Books ,Library Equipment,Corporate and Support Services,Library Dev & Res,992.00,400207,11328
07/02/2022,ZZH702674,3,3873,WF EDUCATION GROUP LTD,171113,Education Library Books ,Library Equipment,Corporate and Support Services,Library Dev & Res,992.00,400207,11328
07/02/2022,ZZH702674,4,3873,WF EDUCATION GROUP LTD,171113,Education Library Books ,Library Equipment,Corporate and Support Services,Library Dev & Res,992.00,400207,11328
07/02/2022,ZZH702674,5,3873,WF EDUCATION GROUP LTD,171113,Education Library Books ,Library Equipment,Corporate and Support Services,Library Dev & Res,992.00,400207,11328
07/02/2022,ZZH702674,6,3873,WF EDUCATION GROUP LTD,171113,Education Library Books ,Library Equipment,Corporate and Support Services,Library Dev & Res,176.00,400207,11328
07/02/2022,ZZH702674,7,3873,WF EDUCATION GROUP LTD,171113,Education Library Books ,Library Equipment,Corporate and Support Services,Library Dev & Res,440.00,400207,11328
07/02/2022,ZZH702674,8,3873,WF EDUCATION GROUP LTD,171113,Education Library Books ,Library Equipment,Corporate and Support Services,Library Dev & Res,440.00,400207,11328
07/02/2022,ZZH702674,9,3873,WF EDUCATION GROUP LTD,171113,Education Library Books ,Library Equipment,Corporate and Support Services,Library Dev & Res,440.00,400207,11328
07/02/2022,ZZH702674,10,3873,WF EDUCATION GROUP LTD,171113,Education Library Books ,Library Equipment,Corporate and Support Services,Library Dev & Res,440.00,400207,11328
07/02/2022,ZZH702674,11,3873,WF EDUCATION GROUP LTD,171113,Education Library Books ,Library Equipment,Corporate and Support Services,Library Dev & Res,440.00,400207,11328
07/02/2022,ZZH702674,12,3873,WF EDUCATION GROUP LTD,171113,Education Library Books ,Library Equipment,Corporate and Support Services,Library Dev & Res,440.00,400207,11328
07/02/2022,ZZH702680,1,11784,Cengage Learning Services,171113,Education Library Books ,Library Equipment,Corporate and Support Services,Library Dev & Res,"6,615.00",400202,11328
07/02/2022,ZZH702727,1,3529,Totally Local Company Ltd,390000,"Works - Construction, Repair & Maintenance  ",Capital Expenditure - Works,#N/A,#N/A,"50,816.12",200304,C.01274.203
07/02/2022,ZZH702732,1,9196,Xaverian College,320000,Social Community Care Supplies & Services  ,Third party payments - Private/Voluntary Sector,Services to People,Top-up Fund Post 16,"7,398.21",402403,12724
08/02/2022,ZZH702757,1,14973,Salford Royal NHS Foundation T,310000,Healthcare  ,Third party payments - Public Sector,Services to People,iBCF,"17,951.19",500402,13000
08/02/2022,ZZH702764,1,2927,XMA Ltd,270000,Information Communication Technology  ,Information and Communications Technology,Services to People,ITT Hospital SW,"6,400.00",402001,12994
08/02/2022,ZZH702764,2,2927,XMA Ltd,270000,Information Communication Technology  ,Information and Communications Technology,Services to People,ITT Hospital SW,80.00,402001,12994
08/02/2022,ZZH702764,3,2927,XMA Ltd,270000,Information Communication Technology  ,Information and Communications Technology,Services to People,ITT Hospital SW,124.20,402001,12994
08/02/2022,ZZH702774,1,6748,GEORGE COX & SONS LTD,390000,Supplies and services,Supplies and services,#N/A,#N/A,"34,481.40",401600,C.01356.203
09/02/2022,ZZH702790,1,6748,GEORGE COX & SONS LTD,390000,Supplies and services,Supplies and services,#N/A,#N/A,"5,559.70",401600,C.01415.203
09/02/2022,ZZH702811,1,10506,G2 Recruitment Solutions Limit,261400,Human Resources Temporary & Agency Staff ,Agency Staff,Services to People,PH-Programme Mngmt,"20,475.00",100290,12732
09/02/2022,ZZH702851,1,1694,Network Rail Infras'ture Ltd,999999,Fees and Charges,Fees and Charges,#N/A,#N/A,"40,007.60",402404,C.01466.201
09/02/2022,ZZH702852,1,8646,MPH INSPECTION SERVICES,230000,Highway Equipment & Materials�   ,Highways Maintenance,Services to Place,A6 Marr Maintenance,"13,490.00",202050,13039
10/02/2022,ZZH702859,1,3529,Totally Local Company Ltd,390000,"Works - Construction, Repair & Maintenance  ",Signage,#N/A,#N/A,"6,760.00",201205,C.10775
10/02/2022,ZZH702865,1,35,CBC Computer Systems Ltd,270000,Information Communication Technology  ,Information and Communications Technology,Corporate and Support Services,IT Main,"10,400.00",402001,11073
10/02/2022,ZZH702880,1,14476,One School Global,170000,Education  ,Third party payments - Public Sector,Services to People,OLA pupils,"20,654.24",500304,10371
10/02/2022,ZZH702881,1,8423,SMS Coaching Limited,261500,Human Resources Training & Conferences ,Fees and Charges,Services to People,SEN Independent Sch,"10,980.00",401024,10372
10/02/2022,ZZH702902,1,5915,Atkins Global Limited,150000,Consultancy   ,Professional Fees,#N/A,#N/A,"17,129.00",401007,C.01437.201
11/02/2022,ZZH702939,1,3529,Totally Local Company Ltd,390000,"Works - Construction, Repair & Maintenance  ",Capital Expenditure - Works,#N/A,#N/A,"22,770.00",200304,C.01422.203
11/02/2022,ZZH702940,1,14669,Sapphire Utility Solutions Ltd,390000,Supplies and services,Supplies and services,#N/A,#N/A,"8,389.55",401600,C.01165.203
11/02/2022,ZZH702945,1,3529,Totally Local Company Ltd,350000,Street & Traffic Management  ,Fixtures and Fittings,Services to Place,Public Realm Inspect,"15,000.00",201202,10879
11/02/2022,ZZH702957,1,3529,Totally Local Company Ltd,240000,Horticultural  ,Grounds Maintenance,Services to Place,Play,"6,555.00",202032,11267
11/02/2022,ZZH702982,1,757,Transport for Greater Manchest,150000,Consultancy   ,Professional Fees,#N/A,#N/A,"9,600.00",401007,C.01063
11/02/2022,ZZH702988,1,1243,The Manchester College (MANCAT,320000,Social Community Care Supplies & Services  ,Third party payments - Private/Voluntary Sector,Services to People,Top-up Fund Post 16,"256,024.34",402403,12724
11/02/2022,ZZH702992,1,11684,OverDrive Global Limited,171113,Education Library Books ,Library Equipment,Corporate and Support Services,Library Dev & Res,"5,221.00",400202,11328
14/02/2022,ZZH703026,1,6857,SITEIMPROVE LTD,270000,Information Communication Technology  ,Information and Communications Technology,Corporate and Support Services,IT Systems,"10,131.85",402001,12503
14/02/2022,ZZH703029,1,11684,OverDrive Global Limited,171113,Education Library Books ,Library Equipment,Corporate and Support Services,Library Dev & Res,"5,221.00",400202,11328
14/02/2022,ZZH703032,1,4190,Derbyshire County Council,170000,Education  ,Third party payments - Public Sector,Services to People,OLA pupils,"5,766.00",500304,10371
14/02/2022,ZZH703033,1,4190,Derbyshire County Council,170000,Education  ,Third party payments - Public Sector,Services to People,OLA pupils,"6,575.34",500304,10371
14/02/2022,ZZH703035,1,4190,Derbyshire County Council,170000,Education  ,Third party payments - Public Sector,Services to People,OLA pupils,"8,650.00",500304,10371
15/02/2022,ZZH703074,1,82,Marwood Electrical Company Ltd,390000,"Works - Construction, Repair & Maintenance  ",Capital Expenditure - Works,#N/A,#N/A,"2,574.00",200304,C.01199.203
15/02/2022,ZZH703074,2,82,Marwood Electrical Company Ltd,390000,"Works - Construction, Repair & Maintenance  ",Capital Expenditure - Works,#N/A,#N/A,"3,217.50",200304,C.01199.203
15/02/2022,ZZH703074,3,82,Marwood Electrical Company Ltd,390000,"Works - Construction, Repair & Maintenance  ",Capital Expenditure - Works,#N/A,#N/A,"1,287.00",200304,C.01199.203
15/02/2022,ZZH703074,4,82,Marwood Electrical Company Ltd,390000,"Works - Construction, Repair & Maintenance  ",Capital Expenditure - Works,#N/A,#N/A,363.84,200304,C.01199.203
15/02/2022,ZZH703075,1,6748,GEORGE COX & SONS LTD,390000,"Works - Construction, Repair & Maintenance  ",Capital Expenditure - Works,Services to People,Condition Surveys,"12,533.91",200304,10734
15/02/2022,ZZH703087,1,11058,Stockport Town Centre Business,999999,Fees and Charges,Fees and Charges,Services to Place,Sports Client,"15,000.00",402404,11309
15/02/2022,ZZH703093,1,6748,GEORGE COX & SONS LTD,390000,"Works - Construction, Repair & Maintenance  ",Capital Expenditure - Works,#N/A,#N/A,"1,450.00",200304,C.01199.203
15/02/2022,ZZH703093,2,6748,GEORGE COX & SONS LTD,390000,"Works - Construction, Repair & Maintenance  ",Capital Expenditure - Works,#N/A,#N/A,"6,969.01",200304,C.01199.203
15/02/2022,ZZH703093,3,6748,GEORGE COX & SONS LTD,390000,"Works - Construction, Repair & Maintenance  ",Capital Expenditure - Works,#N/A,#N/A,850.22,200304,C.01199.203
15/02/2022,ZZH703094,1,13732,Foundations Stockport Ltd,#N/A,#N/A,#N/A,Services to People,COVID Winter Grant,"32,200.00",500999,13096
15/02/2022,ZZH703095,1,13732,Foundations Stockport Ltd,#N/A,#N/A,#N/A,Services to People,COVID Winter Grant,"10,262.00",500999,13096
15/02/2022,ZZH703096,1,13732,Foundations Stockport Ltd,320000,Social Community Care Supplies & Services  ,Third party payments - Private/Voluntary Sector,Corporate and Support Services,GMCA Cmnity Sfty Fnd,"8,167.00",402403,12965
16/02/2022,ZZH703116,1,6189,CACI SoftSmart Ltd,270000,Information Communication Technology  ,Information and Communications Technology,Services to People,YOS Non-Staffing,"15,346.96",402001,11503
16/02/2022,ZZH703117,1,1339,Stockport NHS Foundation Trust,310000,Healthcare  ,Third party payments - Public Sector,Services to People,EHP Children Ctrs Ce,"206,000.00",500401,10122
16/02/2022,ZZH703124,1,1339,Stockport NHS Foundation Trust,310000,Healthcare  ,Third party payments - Public Sector,Services to People,Werneth Programme,"25,100.00",500402,13030
16/02/2022,ZZH703125,1,1339,Stockport NHS Foundation Trust,310000,Healthcare  ,Third party payments - Public Sector,Services to People,EHP TP Commissioning,"30,000.00",500402,11740
16/02/2022,ZZH703126,1,1339,Stockport NHS Foundation Trust,999999,Fees and Charges,Fees and Charges,Services to People,EHP Early Interventn,"106,837.00",402404,12600
16/02/2022,ZZH703127,1,1339,Stockport NHS Foundation Trust,310000,Healthcare  ,Third party payments - Public Sector,Services to People,CADA grant,"31,606.00",500402,13032
16/02/2022,ZZH703128,1,1339,Stockport NHS Foundation Trust,310000,Healthcare  ,Third party payments - Public Sector,Services to People,COMMA Project,"46,100.00",500402,13079
16/02/2022,ZZH703129,1,1339,Stockport NHS Foundation Trust,310000,Healthcare  ,Third party payments - Public Sector,Services to People,CADA grant,"26,339.00",500402,13032
16/02/2022,ZZH703130,1,1339,Stockport NHS Foundation Trust,310000,Healthcare  ,Third party payments - Public Sector,Services to People,CADA grant,"14,550.00",500402,13032
16/02/2022,ZZH703131,1,1339,Stockport NHS Foundation Trust,310000,Healthcare  ,Third party payments - Public Sector,Services to People,Werneth Programme,"33,469.00",500402,13030
16/02/2022,ZZH703133,1,1339,Stockport NHS Foundation Trust,310000,Healthcare  ,Third party payments - Public Sector,Services to People,Werneth Programme,"13,627.00",500402,13030
16/02/2022,ZZH703139,1,3529,Totally Local Company Ltd,390000,Supplies and services,Supplies and services,Services to Place,Land Dev-Werneth Os,"8,150.00",401600,11280
16/02/2022,ZZH703150,1,10897,Three Sixty SHG Ltd,390000,"Works - Construction, Repair & Maintenance  ",Repairs and Maintenance,Corporate and Support Services,Public Libraries Gen,"21,736.34",200123,11329
16/02/2022,ZZH703156,1,10858,Acorn Recovery Projects,261500,Human Resources Training & Conferences ,Fees and Charges,Services to Place,Contin Educ Service,"23,688.24",401024,10511
16/02/2022,ZZH703157,1,11962,PROQUEST INFORMATION & LEARNIN,171113,Education Library Books ,Library Equipment,Corporate and Support Services,Library Dev & Res,"6,862.54",400202,11328
16/02/2022,ZZH703159,1,2671,Oxford University Press.,171113,Education Library Books ,Library Equipment,Corporate and Support Services,Library Dev & Res,"7,016.00",400202,11328
17/02/2022,ZZH703162,1,216,Manchester City Council,390000,Supplies and services,Supplies and services,#N/A,#N/A,"12,742.51",401600,C.00718.203
17/02/2022,ZZH703173,1,14803,Care Together Consultancy Limi,150000,Consultancy   ,Professional Fees,Services to People,REaCH SS Manager,"50,000.00",401020,13069
17/02/2022,ZZH703196,1,3303,Family Rights Group,150000,Consultancy   ,Professional Fees,Services to People,Regional Imp Allianc,"218,885.00",401007,13031
17/02/2022,ZZH703197,1,7166,THE DARTINGTON HALL TRUST,150000,Consultancy   ,Professional Fees,Services to People,Regional Imp Allianc,"168,500.00",401007,13031
18/02/2022,ZZH703238,1,14951,TERMSTALL LTD,240000,Horticultural  ,Grounds Maintenance,#N/A,#N/A,"16,851.00",202032,C.10775
18/02/2022,ZZH703242,1,8729,IS Consultancy (UK) Ltd t/a,190000,Facilities & Management Services  ,Publicity and Promotion,#N/A,#N/A,"5,090.00",401802,C.10932.003
18/02/2022,ZZH703253,1,14619,Constellia Public Limited,390000,"Works - Construction, Repair & Maintenance  ",Repairs and Maintenance,Services to Place,Leisure Level Up Fun,"37,500.00",200123,13124
18/02/2022,ZZH703264,1,3156,Creative Ideas In Print,190000,Facilities & Management Services  ,Publicity and Promotion,Corporate and Support Services,POD Printing,"7,105.00",401800,11064
18/02/2022,ZZH703273,1,1799,Stockport Homes,999999,Social Community Care Supplies & Services  ,Service Contract Payments,Corporate and Support Services,Public Libraries Gen,"5,377.22",561704,11329
20/02/2022,ZZH703274,1,13294,Collective Space,390000,Supplies and services,Supplies and services,Services to People,CYP ASYE,"5,001.54",401600,12953
21/02/2022,ZZH703290,1,14778,Bellrock Property and Facilite,390000,"Works - Construction, Repair & Maintenance  ",Repairs and Maintenance,#N/A,#N/A,0.00,200123,C.11515
21/02/2022,ZZH703290,1,14778,Bellrock Property and Facilite,390000,"Works - Construction, Repair & Maintenance  ",Repairs and Maintenance,#N/A,#N/A,"6,875.00",200123,C.11515
21/02/2022,ZZH703292,1,10349,InterWorks Europe Limited,261500,Human Resources Training & Conferences ,Fees and Charges,Corporate and Support Services,Business Intelligenc,"7,500.00",401024,11872
21/02/2022,ZZH703295,1,15022,Mr Stefan Brochwicz-Lewinski,150000,Consultancy   ,Professional Fees,Corporate and Support Services,Legal Fees Budget,"7,312.50",401020,12271
21/02/2022,ZZH703331,1,757,Transport for Greater Manchest,170000,Education  ,Welfare Payments,Services to People,SS-FreeSclTrans-Sec,"142,590.00",530102,10430
21/02/2022,ZZH703331,2,757,Transport for Greater Manchest,170000,Education  ,Welfare Payments,Services to People,SS-FreeSclTrans-Pri,"3,492.00",530102,10429
21/02/2022,ZZH703334,1,9612,Capita Property & Infrastructu,150000,Consultancy   ,Professional Fees,Services to Place,Planning,"12,000.00",401007,12150
21/02/2022,ZZH703335,1,3763,IDOX Software Ltd,270000,Information Communication Technology  ,Information and Communications Technology,Services to Place,Planning,"31,800.00",402001,12150
22/02/2022,ZZH703358,1,1339,Stockport NHS Foundation Trust,310000,Healthcare  ,Third party payments - Public Sector,Services to People,Yth Justice EarlyInt,"9,652.00",500402,11787
22/02/2022,ZZH703377,1,6255,Building Software Ltd,391200,"Works - Construction, Repair & Maintenance Engineering ",Professional Fees,Services to Place,Invest in Growth,"17,950.00",401032,10091
23/02/2022,ZZH703443,1,13860,Howard Lynn Property Ltd,261400,Human Resources Temporary & Agency Staff ,Agency Staff,Services to Place,Property Client Acct,"6,300.00",100290,12328
23/02/2022,ZZH703445,1,13099,ROBERTSON FACILITIES MANAGEMEN,150000,Consultancy   ,Professional Fees,Services to Place,Property Client Acct,"744,269.42",401020,12328
23/02/2022,ZZH703446,1,13099,ROBERTSON FACILITIES MANAGEMEN,150000,Consultancy   ,Professional Fees,Services to Place,Property Client Acct,"13,426.43",401020,12328
23/02/2022,ZZH703455,1,35,CBC Computer Systems Ltd,270000,Information Communication Technology  ,Information and Communications Technology,Corporate and Support Services,IT Main,"5,750.00",402001,11073
23/02/2022,ZZH703455,2,35,CBC Computer Systems Ltd,270000,Information Communication Technology  ,Information and Communications Technology,Corporate and Support Services,IT Main,560.00,402001,11073
23/02/2022,ZZH703455,3,35,CBC Computer Systems Ltd,270000,Information Communication Technology  ,Information and Communications Technology,Corporate and Support Services,IT Main,140.00,402001,11073
23/02/2022,ZZH703455,4,35,CBC Computer Systems Ltd,270000,Information Communication Technology  ,Information and Communications Technology,Corporate and Support Services,IT Main,680.00,402001,11073
23/02/2022,ZZH703455,5,35,CBC Computer Systems Ltd,270000,Information Communication Technology  ,Information and Communications Technology,Corporate and Support Services,IT Main,40.00,402001,11073
23/02/2022,ZZH703456,1,35,CBC Computer Systems Ltd,270000,Information Communication Technology  ,Information and Communications Technology,Corporate and Support Services,IT Main,"5,700.00",402001,11073
23/02/2022,ZZH703456,2,35,CBC Computer Systems Ltd,270000,Information Communication Technology  ,Information and Communications Technology,Corporate and Support Services,IT Main,672.00,402001,11073
23/02/2022,ZZH703456,3,35,CBC Computer Systems Ltd,270000,Information Communication Technology  ,Information and Communications Technology,Corporate and Support Services,IT Main,168.00,402001,11073
23/02/2022,ZZH703456,4,35,CBC Computer Systems Ltd,270000,Information Communication Technology  ,Information and Communications Technology,Corporate and Support Services,IT Main,816.00,402001,11073
23/02/2022,ZZH703456,5,35,CBC Computer Systems Ltd,270000,Information Communication Technology  ,Information and Communications Technology,Corporate and Support Services,IT Main,48.00,402001,11073
23/02/2022,ZZH703465,1,15025,Manley Park Primary School,170000,Education  ,Third party payments - Public Sector,Services to People,OLA pupils,"6,433.00",500304,10371
23/02/2022,ZZH703468,1,4190,Derbyshire County Council,170000,Education  ,Third party payments - Public Sector,Services to People,OLA pupils,"8,452.11",500304,10371
23/02/2022,ZZH703469,1,12180,Acorn Care and Education,261500,Human Resources Training & Conferences ,Fees and Charges,Services to People,SEN Independent Sch,"9,041.67",401024,10372
23/02/2022,ZZH703470,1,12180,Acorn Care and Education,261500,Human Resources Training & Conferences ,Fees and Charges,Services to People,SEN Independent Sch,"21,291.97",401024,10372
23/02/2022,ZZH703471,1,12180,Acorn Care and Education,261500,Human Resources Training & Conferences ,Fees and Charges,Services to People,SEN Independent Sch,"24,305.23",401024,10372
23/02/2022,ZZH703473,1,4190,Derbyshire County Council,170000,Education  ,Third party payments - Public Sector,Services to People,OLA pupils,"8,649.00",500304,10371
23/02/2022,ZZH703474,1,4190,Derbyshire County Council,170000,Education  ,Third party payments - Public Sector,Services to People,OLA pupils,"9,863.00",500304,10371
23/02/2022,ZZH703481,1,14898,Penna PLC,261300,Human Resources Recruitment & Assessment ,Advertising,Corporate and Support Services,POD Core Staffing,"42,000.00",102040,12590
23/02/2022,ZZH703485,1,2295,P McGuinness and Co Ltd,150000,Consultancy   ,Professional Fees,#N/A,#N/A,"25,000.00",401007,C.11440
24/02/2022,ZZH703515,1,15028,Fenestration Solutions NW Limi,390000,"Works - Construction, Repair & Maintenance  ",Repairs and Maintenance,#N/A,#N/A,"58,069.20",200123,C.10304.109
24/02/2022,ZZH703528,1,35,CBC Computer Systems Ltd,270000,Information Communication Technology  ,Information and Communications Technology,Corporate and Support Services,Public Libraries Gen,"3,582.00",402001,11329
24/02/2022,ZZH703528,2,35,CBC Computer Systems Ltd,270000,Information Communication Technology  ,Information and Communications Technology,Corporate and Support Services,Public Libraries Gen,"8,370.00",402001,11329
24/02/2022,ZZH703538,1,6748,GEORGE COX & SONS LTD,320000,Social Community Care Supplies & Services  ,Third party payments - Private/Voluntary Sector,Corporate and Support Services,Com. Invest Fund,"6,868.60",402403,12979
24/02/2022,ZZH703539,1,8733,ELF SOFTWARE LTD,270000,Information Communication Technology  ,Information and Communications Technology,Services to Place,Property Client Acct,"5,499.96",402001,12328
24/02/2022,ZZH703549,1,13792,The Writing Squad,150000,Consultancy   ,Professional Fees,Services to Place,Arts Development,"12,500.00",401007,11384
24/02/2022,ZZH703586,1,13458,Yorkshire Adoption Agency,150000,Consultancy   ,Professional Fees,Services to People,RAA Adoption Count,"5,000.00",401020,12957
25/02/2022,ZZH703596,1,1104,Age UK Stockport,150000,Consultancy   ,Professional Fees,Services to People,PH-Local Pilot,"13,221.50",401020,13047
25/02/2022,ZZH703597,1,6170,Greater Manchester TreeStation,390000,Supplies and services,Supplies and services,#N/A,#N/A,"8,500.00",401600,C.00718.203
25/02/2022,ZZH703599,1,13495,Pell Frischmann Consultants Lt,390000,Supplies and services,Supplies and services,#N/A,#N/A,"7,261.00",401600,C.01467.201
25/02/2022,ZZH703600,1,3303,Family Rights Group,150000,Consultancy   ,Professional Fees,Services to People,SC - Family Group Me,"5,000.00",401007,11490
25/02/2022,ZZH703601,1,35,CBC Computer Systems Ltd,270000,Information Communication Technology  ,Information and Communications Technology,Services to People,R&I Workers Hospital,"5,750.00",402001,11599
25/02/2022,ZZH703601,2,35,CBC Computer Systems Ltd,270000,Information Communication Technology  ,Information and Communications Technology,Services to People,R&I Workers Hospital,560.00,402001,11599
25/02/2022,ZZH703601,3,35,CBC Computer Systems Ltd,270000,Information Communication Technology  ,Information and Communications Technology,Services to People,R&I Workers Hospital,140.00,402001,11599
25/02/2022,ZZH703601,4,35,CBC Computer Systems Ltd,270000,Information Communication Technology  ,Information and Communications Technology,Services to People,R&I Workers Hospital,680.00,402001,11599
25/02/2022,ZZH703601,5,35,CBC Computer Systems Ltd,270000,Information Communication Technology  ,Information and Communications Technology,Services to People,R&I Workers Hospital,40.00,402001,11599
25/02/2022,ZZH703611,1,6865,City B Group,#N/A,#N/A,#N/A,Services to Place,Investing in Growth,"7,845.00",400999,10102
25/02/2022,ZZH703612,1,8236,STOCKPORT WITHOUT ABUSE,390000,Supplies and services,Supplies and services,Services to People,Domestic Abuse Bill,"80,800.00",401600,13111
25/02/2022,ZZH703613,1,6170,Greater Manchester TreeStation,150000,Consultancy   ,Professional Fees,Services to Place,Highway Structs R+R,"7,495.00",401007,11975
25/02/2022,ZZH703618,1,5915,Atkins Global Limited,150000,Consultancy   ,Professional Fees,Services to Place,Feasibility,"9,897.12",401007,13062
28/02/2022,ZZH703636,1,3529,Totally Local Company Ltd,390000,Supplies and services,Supplies and services,Services to Place,Emergency Tree Works,"8,025.00",401600,11168
01/03/2022,ZZH703691,1,4514,Brook,390000,Supplies and services,Supplies and services,Services to People,PH-Chlamydia Screen,"12,138.00",401600,12747
01/03/2022,ZZH703693,1,865,Bethell Construction Ltd,390000,Supplies and services,Supplies and services,#N/A,#N/A,"7,000.00",401600,C.01444.203
01/03/2022,ZZH703694,1,3529,Totally Local Company Ltd,390000,"Works - Construction, Repair & Maintenance  ",Capital Expenditure - Works,#N/A,#N/A,"9,840.44",200304,C.01420.203
01/03/2022,ZZH703695,1,6748,GEORGE COX & SONS LTD,390000,"Works - Construction, Repair & Maintenance  ",Capital Expenditure - Works,#N/A,#N/A,"21,777.67",200304,C.01436.203
01/03/2022,ZZH703696,1,3529,Totally Local Company Ltd,390000,"Works - Construction, Repair & Maintenance  ",Capital Expenditure - Works,#N/A,#N/A,"8,000.00",200304,C.01410.203
01/03/2022,ZZH703703,1,4190,Derbyshire County Council,170000,Education  ,Third party payments - Public Sector,Services to People,OLA pupils,"14,622.00",500304,10371
02/03/2022,ZZH703778,1,1816,Seashell Trust,150000,Consultancy   ,Professional Fees,Services to People,PH-Local Pilot,"22,207.65",401020,13047
02/03/2022,ZZH703779,1,1816,Seashell Trust,210000,Furniture & Soft Furnishings  ,Furniture and Equipment,Services to People,PH-Local Pilot,"8,145.10",400115,13047
02/03/2022,ZZH703799,1,7670,Wilds Of Oldham,110000,Catering  ,Expenses and Allowances,Corporate and Support Services,Town Hall Events,"6,000.00",402202,11375
02/03/2022,ZZH703803,1,14253,South London and Maudsley NHS,290000,Arts & Leisure Services  ,Publicity and Promotion,Services to People,EPEC Programme,"10,750.00",401801,13037
02/03/2022,ZZH703811,1,845,Dotted Eyes Ltd,270000,Information Communication Technology  ,Information and Communications Technology,Corporate and Support Services,Spatial Intelligence,"12,791.67",402001,11973
03/03/2022,ZZH703829,1,3529,Totally Local Company Ltd,390000,Supplies and services,Supplies and services,Services to Place,Nature-Arboriculture,780.00,401600,11281
03/03/2022,ZZH703829,2,3529,Totally Local Company Ltd,390000,Supplies and services,Supplies and services,Services to Place,Nature-Arboriculture,"3,680.00",401600,11281
03/03/2022,ZZH703829,3,3529,Totally Local Company Ltd,390000,Supplies and services,Supplies and services,Services to Place,Nature-Arboriculture,"3,210.00",401600,11281
03/03/2022,ZZH703829,4,3529,Totally Local Company Ltd,390000,Supplies and services,Supplies and services,Services to Place,Nature-Arboriculture,"1,435.00",401600,11281
03/03/2022,ZZH703829,5,3529,Totally Local Company Ltd,390000,Supplies and services,Supplies and services,Services to Place,Nature-Arboriculture,"1,790.00",401600,11281
03/03/2022,ZZH703829,6,3529,Totally Local Company Ltd,390000,Supplies and services,Supplies and services,Services to Place,Nature-Arboriculture,"1,920.00",401600,11281
03/03/2022,ZZH703844,1,13451,HM Prison and Probation Servic,320000,Social Community Care Supplies & Services  ,Third party payments - Private/Voluntary Sector,Corporate and Support Services,GMCA Cmnity Sfty Fnd,"6,000.00",402403,12965
03/03/2022,ZZH703847,1,12193,Greater Manchester Combined Au,999999,Fees and Charges,Fees and Charges,Services to People,PH - COMF Grant,"30,000.00",402407,13097
03/03/2022,ZZH703850,1,3763,IDOX Software Ltd,270000,Information Communication Technology  ,Information and Communications Technology,Corporate and Support Services,Spatial Intelligence,"10,303.34",402001,11973
03/03/2022,ZZH703896,1,12356,Specialist + Equine Bailiffs L,240000,Horticultural  ,Grounds Maintenance,Services to Place,Cheadle Cemetery,"18,120.00",202030,11283
04/03/2022,ZZH703921,1,13495,Pell Frischmann Consultants Lt,150000,Consultancy   ,Professional Fees,Services to Place,MS Design Frnwk Staf,"26,000.00",401020,13107
04/03/2022,ZZH703923,1,2973,CIPFA,171113,Education Library Books ,Library Equipment,Corporate and Support Services,Financial Accountanc,"6,560.00",400202,12873
04/03/2022,ZZH703927,1,14686,Post Office Limited,#N/A,#N/A,#N/A,Services to People,H'sehold S'port Fund,292.70,500999,13154
04/03/2022,ZZH703927,2,14686,Post Office Limited,#N/A,#N/A,#N/A,Services to People,H'sehold S'port Fund,799.80,500999,13154
04/03/2022,ZZH703927,3,14686,Post Office Limited,#N/A,#N/A,#N/A,Services to People,H'sehold S'port Fund,"4,186.40",500999,13154
04/03/2022,ZZH703938,1,1342,UK Container Maintenance Ltd,182020,Environmental Services Waste Management,Waste Management Equipment,Services to Place,Bulk Container,"1,606.50",400401,10883
04/03/2022,ZZH703938,2,1342,UK Container Maintenance Ltd,182020,Environmental Services Waste Management,Waste Management Equipment,Services to Place,Bulk Container,714.00,400401,10883
04/03/2022,ZZH703938,3,1342,UK Container Maintenance Ltd,182020,Environmental Services Waste Management,Waste Management Equipment,Services to Place,Bulk Container,357.00,400401,10883
04/03/2022,ZZH703938,4,1342,UK Container Maintenance Ltd,182020,Environmental Services Waste Management,Waste Management Equipment,Services to Place,Bulk Container,"2,344.50",400401,10883
04/03/2022,ZZH703938,5,1342,UK Container Maintenance Ltd,182020,Environmental Services Waste Management,Waste Management Equipment,Services to Place,Bulk Container,240.00,400401,10883
04/03/2022,ZZH703949,1,12180,Acorn Care and Education,261500,Human Resources Training & Conferences ,Fees and Charges,Services to People,SEN Independent Sch,"5,523.92",401024,10372
05/03/2022,ZZH703954,1,3529,Totally Local Company Ltd,390000,Supplies and services,Supplies and services,#N/A,#N/A,"33,275.76",401600,C.01353.202
06/03/2022,ZZH703969,1,5214,WSP GROUP PLC,390000,Supplies and services,Supplies and services,#N/A,#N/A,"7,950.00",401600,C.01468.201
07/03/2022,ZZH703972,1,8233,MGB Plastics Ltd,182020,Environmental Services Waste Management,Waste Management Equipment,Services to Place,Wheelie Bins,"14,304.00",400401,10864
07/03/2022,ZZH703987,1,11715,CBRE,150000,Consultancy   ,Professional Fees,Services to Place,Town deal Cheadle,"33,875.00",401020,13057
07/03/2022,ZZH704004,1,628,Life Leisure,999999,Social Community Care Supplies & Services  ,Service Contract Payments,Services to People,PH-Lifestyles,"206,619.00",561704,12737
07/03/2022,ZZH704009,1,12343,Land Use Consultants Ltd,150000,Consultancy   ,Professional Fees,Services to Place,Local Plan Project,"32,979.00",401007,12936
08/03/2022,ZZH704036,1,223,Groundwork Landscapes Ltd,240000,Horticultural  ,Grounds Maintenance,#N/A,#N/A,"29,111.55",202032,C.10775
08/03/2022,ZZH704037,1,8010,GROUNDWORK & LEISURE SERVIC,240000,Horticultural  ,Grounds Maintenance,#N/A,#N/A,"30,788.55",202032,C.10775
08/03/2022,ZZH704038,1,8010,GROUNDWORK & LEISURE SERVIC,240000,Horticultural  ,Grounds Maintenance,#N/A,#N/A,"16,341.00",202032,C.10775
08/03/2022,ZZH704039,1,8010,GROUNDWORK & LEISURE SERVIC,240000,Horticultural  ,Grounds Maintenance,#N/A,#N/A,"16,637.98",202032,C.10775
08/03/2022,ZZH704040,1,223,Groundwork Landscapes Ltd,240000,Horticultural  ,Grounds Maintenance,#N/A,#N/A,"8,737.68",202032,C.10775
08/03/2022,ZZH704041,1,8010,GROUNDWORK & LEISURE SERVIC,240000,Horticultural  ,Grounds Maintenance,#N/A,#N/A,"45,922.99",202032,C.10775
08/03/2022,ZZH704042,1,8010,GROUNDWORK & LEISURE SERVIC,240000,Horticultural  ,Grounds Maintenance,#N/A,#N/A,"19,195.31",202032,C.10775
08/03/2022,ZZH704043,1,8010,GROUNDWORK & LEISURE SERVIC,240000,Horticultural  ,Grounds Maintenance,#N/A,#N/A,"38,241.45",202032,C.10775
08/03/2022,ZZH704074,1,15041,Styal Primary School,170000,Education  ,Third party payments - Public Sector,Services to People,OLA pupils,"6,218.00",500304,10371
08/03/2022,ZZH704079,1,14243,Keys PCE Ltd,261500,Human Resources Training & Conferences ,Fees and Charges,Services to People,SEN Independent Sch,"13,200.00",401024,10372
08/03/2022,ZZH704082,1,216,Manchester City Council,170000,Education  ,Third party payments - Public Sector,Services to People,OLA pupils,"8,347.91",500304,10371
09/03/2022,ZZH704105,1,8010,GROUNDWORK & LEISURE SERVIC,240000,Horticultural  ,Grounds Maintenance,#N/A,#N/A,"57,426.52",202032,C.10775
09/03/2022,ZZH704106,1,8010,GROUNDWORK & LEISURE SERVIC,240000,Horticultural  ,Grounds Maintenance,#N/A,#N/A,"87,231.94",202032,C.10775
09/03/2022,ZZH704149,1,6748,GEORGE COX & SONS LTD,390000,Supplies and services,Supplies and services,#N/A,#N/A,"75,511.30",401600,C.01179.203
10/03/2022,ZZH704161,1,865,Bethell Construction Ltd,390000,Supplies and services,Supplies and services,#N/A,#N/A,"42,981.75",401600,C.01179.203
10/03/2022,ZZH704198,1,10019,Access UK Ltd,270000,Information Communication Technology  ,Information and Communications Technology,Corporate and Support Services,I.T Business Relat,"51,127.48",402001,13044
10/03/2022,ZZH704198,2,10019,Access UK Ltd,270000,Information Communication Technology  ,Information and Communications Technology,Corporate and Support Services,I.T Business Relat,"12,381.29",402001,13044
10/03/2022,ZZH704205,1,5214,WSP GROUP PLC,150000,Consultancy   ,Professional Fees,#N/A,#N/A,"41,000.00",401007,C.01471.201
10/03/2022,ZZH704206,1,3529,Totally Local Company Ltd,181800,Environmental Services Technical Equipment ,Furniture and Equipment,#N/A,#N/A,"25,039.64",400110,C.01299.201
10/03/2022,ZZH704207,1,3529,Totally Local Company Ltd,181800,Environmental Services Technical Equipment ,Furniture and Equipment,#N/A,#N/A,"33,315.60",400110,C.01299.201
10/03/2022,ZZH704211,1,7025,CBRE Limited,150000,Consultancy   ,Professional Fees,Services to Place,Town deal Cheadle,"201,927.30",401020,13057
11/03/2022,ZZH704222,1,11539,Bolinda UK Limited,171113,Education Library Books ,Library Equipment,Corporate and Support Services,Library Dev & Res,"5,725.58",400201,11328
11/03/2022,ZZH704231,1,8106,Tarmac Trading Ltd,390000,Supplies and services,Supplies and services,#N/A,#N/A,"69,136.28",401600,C.01321.203
11/03/2022,ZZH704236,1,3529,Totally Local Company Ltd,240000,Horticultural  ,Grounds Maintenance,#N/A,#N/A,"29,589.50",202032,C.10775
11/03/2022,ZZH704243,1,683,AECOM Limited,150000,Consultancy   ,Professional Fees,#N/A,#N/A,"19,678.00",401007,C.01326.201
11/03/2022,ZZH704246,1,1339,Stockport NHS Foundation Trust,310000,Healthcare  ,Third party payments - Public Sector,Services to People,New Beginnings,"48,707.00",500402,13065
11/03/2022,ZZH704247,1,1339,Stockport NHS Foundation Trust,310000,Healthcare  ,Third party payments - Public Sector,Services to People,SF Senior Management,"80,410.00",500402,11486
14/03/2022,ZZH704291,1,10487,City Dressing,#N/A,#N/A,#N/A,Services to Place,Investing in Growth,"13,583.20",400999,10102
14/03/2022,ZZH704293,1,223,Groundwork Landscapes Ltd,240000,Horticultural  ,Grounds Maintenance,#N/A,#N/A,"19,195.31",202032,C.10775
14/03/2022,ZZH704294,1,223,Groundwork Landscapes Ltd,240000,Horticultural  ,Grounds Maintenance,#N/A,#N/A,"16,637.98",202032,C.10775
14/03/2022,ZZH704295,1,223,Groundwork Landscapes Ltd,240000,Horticultural  ,Grounds Maintenance,#N/A,#N/A,"45,922.99",202032,C.10775
14/03/2022,ZZH704296,1,3529,Totally Local Company Ltd,240000,Horticultural  ,Grounds Maintenance,#N/A,#N/A,"32,795.00",202032,C.10981
14/03/2022,ZZH704297,1,223,Groundwork Landscapes Ltd,240000,Horticultural  ,Grounds Maintenance,#N/A,#N/A,"16,341.00",202032,C.10775
14/03/2022,ZZH704299,1,223,Groundwork Landscapes Ltd,240000,Horticultural  ,Grounds Maintenance,#N/A,#N/A,"38,241.45",202032,C.10775
14/03/2022,ZZH704300,1,223,Groundwork Landscapes Ltd,240000,Horticultural  ,Grounds Maintenance,#N/A,#N/A,"30,788.55",202032,C.10775
14/03/2022,ZZH704301,1,12222,Storm Enviromental Ltd,182020,Environmental Services Waste Management,Waste Management Equipment,Services to Place,Bulk Container,"16,020.00",400401,10883
15/03/2022,ZZH704341,1,15066,Stephenson Halliday,150000,Consultancy   ,Professional Fees,Services to Place,Planning,"8,080.00",401007,12150
15/03/2022,ZZH704358,1,1799,Stockport Homes,320000,Social Community Care Supplies & Services  ,Care Payments,Services to People,Extra Care Hsg Block,"17,186.52",530328,12219
15/03/2022,ZZH704359,1,4369,Pennine Care NHS Trust,999999,Fees and Charges,Fees and Charges,Services to People,SNC,"11,423.88",402404,12929
15/03/2022,ZZH704362,1,8111,Manchester City Council Tradin,999999,Third party payments - Public Sector,Third party payments - Public Sector,Services to People,Regional Imp Allianc,"49,400.00",500303,13031
15/03/2022,ZZH704376,1,3529,Totally Local Company Ltd,240000,Horticultural  ,Grounds Maintenance,#N/A,#N/A,"6,756.25",202029,C.01000.098
15/03/2022,ZZH704382,1,3529,Totally Local Company Ltd,280000,Legal Services  ,Legal Fees,#N/A,#N/A,"14,649.36",401016,C.01436.203
16/03/2022,ZZH704414,1,865,Bethell Construction Ltd,390000,Supplies and services,Supplies and services,#N/A,#N/A,"42,981.75",401600,C.01179.203
16/03/2022,ZZH704429,1,7025,CBRE Limited,150000,Consultancy   ,Professional Fees,Services to Place,Merseyway Shop Ctre,"6,000.00",401020,12866
16/03/2022,ZZH704430,1,12384,Synergy Stockport,150000,Consultancy   ,Professional Fees,Corporate and Support Services,Com. Invest Fund,"50,000.00",401020,12979
16/03/2022,ZZH704430,2,12384,Synergy Stockport,150000,Consultancy   ,Professional Fees,Corporate and Support Services,Com. Invest Fund,"70,000.00",401020,12979
16/03/2022,ZZH704430,3,12384,Synergy Stockport,150000,Consultancy   ,Professional Fees,Corporate and Support Services,Com. Invest Fund,"70,000.00",401020,12979
16/03/2022,ZZH704433,1,12384,Synergy Stockport,150000,Consultancy   ,Professional Fees,Corporate and Support Services,Com. Invest Fund,"40,000.00",401020,12979
16/03/2022,ZZH704433,2,12384,Synergy Stockport,150000,Consultancy   ,Professional Fees,Corporate and Support Services,Com. Invest Fund,"40,000.00",401020,12979
16/03/2022,ZZH704433,3,12384,Synergy Stockport,150000,Consultancy   ,Professional Fees,Corporate and Support Services,Com. Invest Fund,"40,000.00",401020,12979
16/03/2022,ZZH704446,1,1382,Pure Innovations Ltd,150000,Consultancy   ,Professional Fees,Services to People,SC - Leaving Care,"18,139.52",401020,11501
16/03/2022,ZZH704453,1,5183,HERTFORDSHIRE COUNTY,999999,Third party payments - Public Sector,Third party payments - Public Sector,Services to People,Regional Imp Allianc,"35,400.00",500303,13031
16/03/2022,ZZH704465,1,7522,The Design Concept,390000,"Works - Construction, Repair & Maintenance  ",Repairs and Maintenance,Corporate and Support Services,Public Libraries Gen,"9,624.00",200123,11329
17/03/2022,ZZH704481,1,6170,Greater Manchester TreeStation,390000,Supplies and services,Supplies and services,Services to Place,Emergency Tree Works,"6,705.00",401600,11168
17/03/2022,ZZH704494,1,14735,Streetgames UK Ltd,320000,Social Community Care Supplies & Services  ,Third party payments - Private/Voluntary Sector,Services to People,Holiday Activities,"3,500.00",500604,13100
17/03/2022,ZZH704494,2,14735,Streetgames UK Ltd,320000,Social Community Care Supplies & Services  ,Third party payments - Private/Voluntary Sector,Services to People,Holiday Activities,"9,282.00",500604,13100
17/03/2022,ZZH704499,1,14007,Browne Jacobson LLP,150000,Consultancy   ,Professional Fees,Services to Place,CIC,"35,000.00",401007,13106
17/03/2022,ZZH704531,1,13451,HM Prison and Probation Servic,320000,Social Community Care Supplies & Services  ,Third party payments - Private/Voluntary Sector,Corporate and Support Services,GMCA Cmnity Sfty Fnd,"6,000.00",402403,12965
17/03/2022,ZZH704552,1,13808,Progress to Excellence Group,261500,Human Resources Training & Conferences ,Fees and Charges,Services to People,SEN Independent Sch,"12,600.00",401024,10372
18/03/2022,ZZH704563,1,8106,Tarmac Trading Ltd,280000,Legal Services  ,Legal Fees,#N/A,#N/A,"56,051.38",401016,C.01436.203
18/03/2022,ZZH704564,1,6170,Greater Manchester TreeStation,390000,Supplies and services,Supplies and services,Services to Place,Climate Change Now,"5,250.00",401600,13112
18/03/2022,ZZH704564,2,6170,Greater Manchester TreeStation,390000,Supplies and services,Supplies and services,Services to Place,Climate Change Now,"4,370.00",401600,13112
18/03/2022,ZZH704564,3,6170,Greater Manchester TreeStation,390000,Supplies and services,Supplies and services,Services to Place,Climate Change Now,"3,650.00",401600,13112
18/03/2022,ZZH704568,1,14011,Baltimore Consulting,261400,Human Resources Temporary & Agency Staff ,Agency Staff,Services to People,Out of Hours Team,"5,000.00",100290,12791
18/03/2022,ZZH704616,1,6697,Mott MacDonald /Cambridge Edu,240000,Horticultural  ,Grounds Maintenance,Services to Place,Land Dev-Werneth Os,"5,793.00",202030,11280
18/03/2022,ZZH704639,1,3529,Totally Local Company Ltd,390000,"Works - Construction, Repair & Maintenance  ",Repairs and Maintenance,Services to People,PH-Test & Trace,"5,492.50",200160,13080
18/03/2022,ZZH704640,1,3529,Totally Local Company Ltd,390000,"Works - Construction, Repair & Maintenance  ",Repairs and Maintenance,Services to People,PH-Test & Trace,"11,680.00",200160,13080
19/03/2022,ZZH704641,1,10867,ABL Health Ltd,999999,Fees and Charges,Fees and Charges,Services to People,PH-Lifestyles,"5,000.00",402404,12737
21/03/2022,ZZH704644,1,12422,Cirrus Research PLC,210000,Furniture & Soft Furnishings  ,Furniture and Equipment,Services to Place,Neighbourhoods Team,"20,000.00",400105,10900
21/03/2022,ZZH704649,1,8106,Tarmac Trading Ltd,390000,"Works - Construction, Repair & Maintenance  ",Capital Expenditure - Works,#N/A,#N/A,"49,913.84",200304,C.01392.203
21/03/2022,ZZH704664,1,4272,Civica UK Ltd,270000,Information Communication Technology  ,Information and Communications Technology,Corporate and Support Services,Bentax,"234,427.78",402001,11139
21/03/2022,ZZH704667,1,1900,Broxap Ltd,181800,Environmental Services Technical Equipment ,Furniture and Equipment,Services to Place,Memorial Benches,"7,752.00",400110,11279
21/03/2022,ZZH704667,2,1900,Broxap Ltd,181800,Environmental Services Technical Equipment ,Furniture and Equipment,Services to Place,Memorial Benches,485.00,400110,11279
21/03/2022,ZZH704688,1,82,Marwood Electrical Company Ltd,390000,"Works - Construction, Repair & Maintenance  ",Capital Expenditure - Works,#N/A,#N/A,"18,159.75",200304,C.01219.203
21/03/2022,ZZH704701,1,10392,Bibliographic Data Services Li,171113,Education Library Books ,Library Equipment,Corporate and Support Services,Library Dev & Res,"12,955.50",400207,11328
21/03/2022,ZZH704721,1,3421,Symetri Ltd,270000,Information Communication Technology  ,Information and Communications Technology,Services to Place,D & I Team,"65,245.00",402010,11960
21/03/2022,ZZH704722,1,8244,NCER CIC,150000,Consultancy   ,Professional Fees,Corporate and Support Services,Business Intelligenc,"9,841.47",401020,11872
21/03/2022,ZZH704724,1,15008,Wired Plus Ltd,190000,Facilities & Management Services  ,Office Expenses,Corporate and Support Services,POD Communications,"15,665.86",400710,11323
21/03/2022,ZZH704733,1,223,Groundwork Landscapes Ltd,240000,Horticultural  ,Grounds Maintenance,#N/A,#N/A,"87,231.94",202032,C.10775
21/03/2022,ZZH704734,1,223,Groundwork Landscapes Ltd,240000,Horticultural  ,Grounds Maintenance,#N/A,#N/A,"57,426.52",202032,C.10775
22/03/2022,ZZH704753,1,1339,Stockport NHS Foundation Trust,261500,Human Resources Training & Conferences ,Fees and Charges,Services to People,CYP PH Contracts,"5,000.00",401024,13034
22/03/2022,ZZH704754,1,1799,Stockport Homes,999999,Fees and Charges,Fees and Charges,Services to People,CYP PH Contracts,"5,000.00",401035,13034
22/03/2022,ZZH704761,1,7650,Liquid Roofing Ltd,390000,"Works - Construction, Repair & Maintenance  ",Repairs and Maintenance,#N/A,#N/A,"338,287.55",200123,C.10304.109
22/03/2022,ZZH704762,1,7650,Liquid Roofing Ltd,390000,"Works - Construction, Repair & Maintenance  ",Repairs and Maintenance,#N/A,#N/A,"136,788.55",200123,C.10373.109
22/03/2022,ZZH704765,1,6748,GEORGE COX & SONS LTD,390000,Supplies and services,Supplies and services,#N/A,#N/A,"40,775.00",401600,C.01221.203
22/03/2022,ZZH704768,1,8236,STOCKPORT WITHOUT ABUSE,390000,Supplies and services,Supplies and services,Services to People,Domestic Abuse,"32,000.00",401600,12852
22/03/2022,ZZH704778,1,3529,Totally Local Company Ltd,390000,Supplies and services,Supplies and services,#N/A,#N/A,"10,993.26",401600,C.00880.203
22/03/2022,ZZH704786,1,3529,Totally Local Company Ltd,381600,Vehicle Management Hire/Leasing ,Leasing /Transport Hire,#N/A,#N/A,"7,709.21",300304,C.01094.203
22/03/2022,ZZH704790,1,1694,Network Rail Infras'ture Ltd,390000,Supplies and services,Supplies and services,#N/A,#N/A,"6,415.88",401600,C.01337.203
22/03/2022,ZZH704793,1,1535,Education Software Solutions,390000,"Works - Construction, Repair & Maintenance  ",Fees and Charges,Corporate and Support Services,IT SIMS,"13,500.00",401017,10422
22/03/2022,ZZH704816,1,757,Transport for Greater Manchest,999999,Fees and Charges,Fees and Charges,Services to Place,Taxi & Private Hire,"5,000.00",401035,10916
23/03/2022,ZZH704832,1,3421,Symetri Ltd,270000,Information Communication Technology  ,Information and Communications Technology,Services to Place,Property Client Acct,"10,225.00",402001,12328
23/03/2022,ZZH704835,1,13860,Howard Lynn Property Ltd,261400,Human Resources Temporary & Agency Staff ,Agency Staff,Services to Place,Property Client Acct,"5,681.21",100290,12328
23/03/2022,ZZH704865,1,2927,XMA Ltd,270000,Information Communication Technology  ,Information and Communications Technology,Services to Place,D & I Team,"9,353.44",402001,11960
24/03/2022,ZZH704872,1,3529,Totally Local Company Ltd,390000,"Works - Construction, Repair & Maintenance  ",Capital Expenditure - Works,#N/A,#N/A,"122,379.88",200304,C.01477.203
24/03/2022,ZZH704879,1,7025,CBRE Limited,150000,Consultancy   ,Professional Fees,Services to Place,Town Centre Devt Tea,"10,438.00",401020,10072
24/03/2022,ZZH704880,1,12978,Mills & Reeve LLP (office acco,280000,Legal Services  ,Legal Fees,Services to Place,Town Centre Devt Tea,"50,000.00",401016,10072
24/03/2022,ZZH704889,1,7025,CBRE Limited,150000,Consultancy   ,Professional Fees,Services to Place,MDC Mayoral DC,"41,000.00",401007,13033
25/03/2022,ZZH704950,1,35,CBC Computer Systems Ltd,270000,Information Communication Technology  ,Information and Communications Technology,Corporate and Support Services,IT Main,179.00,402001,11073
25/03/2022,ZZH704950,2,35,CBC Computer Systems Ltd,270000,Information Communication Technology  ,Information and Communications Technology,Corporate and Support Services,IT Main,169.00,402001,11073
25/03/2022,ZZH704950,3,35,CBC Computer Systems Ltd,270000,Information Communication Technology  ,Information and Communications Technology,Corporate and Support Services,IT Main,215.00,402001,11073
25/03/2022,ZZH704950,4,35,CBC Computer Systems Ltd,270000,Information Communication Technology  ,Information and Communications Technology,Corporate and Support Services,IT Main,"1,930.00",402001,11073
25/03/2022,ZZH704950,5,35,CBC Computer Systems Ltd,270000,Information Communication Technology  ,Information and Communications Technology,Corporate and Support Services,IT Main,202.00,402001,11073
25/03/2022,ZZH704950,6,35,CBC Computer Systems Ltd,270000,Information Communication Technology  ,Information and Communications Technology,Corporate and Support Services,IT Main,112.00,402001,11073
25/03/2022,ZZH704950,7,35,CBC Computer Systems Ltd,270000,Information Communication Technology  ,Information and Communications Technology,Corporate and Support Services,IT Main,122.00,402001,11073
25/03/2022,ZZH704950,8,35,CBC Computer Systems Ltd,270000,Information Communication Technology  ,Information and Communications Technology,Corporate and Support Services,IT Main,"1,259.00",402001,11073
25/03/2022,ZZH704950,9,35,CBC Computer Systems Ltd,270000,Information Communication Technology  ,Information and Communications Technology,Corporate and Support Services,IT Main,"2,199.00",402001,11073
25/03/2022,ZZH704950,10,35,CBC Computer Systems Ltd,270000,Information Communication Technology  ,Information and Communications Technology,Corporate and Support Services,IT Main,112.00,402001,11073
25/03/2022,ZZH704950,11,35,CBC Computer Systems Ltd,270000,Information Communication Technology  ,Information and Communications Technology,Corporate and Support Services,IT Main,570.00,402001,11073
25/03/2022,ZZH704955,1,3529,Totally Local Company Ltd,390000,"Works - Construction, Repair & Maintenance  ",Repairs and Maintenance,Services to Place,Mill Lane Cemetery,"11,000.00",200123,11287
25/03/2022,ZZH704981,1,10867,ABL Health Ltd,999999,Fees and Charges,Fees and Charges,Services to People,PH-Lifestyles,"10,000.00",402404,12737
28/03/2022,ZZH705038,1,13551,Permanent Futures Ltd,261400,Human Resources Temporary & Agency Staff ,Agency Staff,Corporate and Support Services,Business Intelligenc,"8,800.00",100290,11872
28/03/2022,ZZH705040,1,8236,STOCKPORT WITHOUT ABUSE,390000,Supplies and services,Supplies and services,Services to People,Domestic Abuse Bill,"31,000.00",401600,13111
28/03/2022,ZZH705070,1,13732,Foundations Stockport Ltd,#N/A,#N/A,#N/A,Services to People,COVID Winter Grant,"76,167.30",500999,13096
29/03/2022,ZZH705084,1,6967,Wilde Consultants Ltd,150000,Consultancy   ,Professional Fees,Services to Place,MS Design Frnwk Staf,"21,120.00",401020,13107
29/03/2022,ZZH705085,1,6967,Wilde Consultants Ltd,150000,Consultancy   ,Professional Fees,Services to Place,MS Design Frnwk Staf,"22,680.00",401020,13107
29/03/2022,ZZH705086,1,6967,Wilde Consultants Ltd,150000,Consultancy   ,Professional Fees,Services to Place,MS Design Frnwk Staf,"26,880.00",401020,13107
29/03/2022,ZZH705092,1,1339,Stockport NHS Foundation Trust,310000,Healthcare  ,Third party payments - Public Sector,Services to People,Yth Justice EarlyInt,"15,810.00",500402,11787
29/03/2022,ZZH705107,1,10786,Market Place Management Ltd,390000,Supplies and services,Supplies and services,Services to Place,Market General,"20,000.00",401600,10906
29/03/2022,ZZH705108,1,6967,Wilde Consultants Ltd,150000,Consultancy   ,Professional Fees,Services to Place,Network Assets Staff,"19,080.00",401020,11959
29/03/2022,ZZH705109,1,6748,GEORGE COX & SONS LTD,390000,Supplies and services,Supplies and services,#N/A,#N/A,"30,000.00",401600,C.01444.203
29/03/2022,ZZH705110,1,6748,GEORGE COX & SONS LTD,390000,Supplies and services,Supplies and services,#N/A,#N/A,"50,000.00",401600,C.01440.203
29/03/2022,ZZH705111,1,6967,Wilde Consultants Ltd,150000,Consultancy   ,Professional Fees,Services to Place,Network Assets Staff,"41,340.00",401020,11959
29/03/2022,ZZH705112,1,6967,Wilde Consultants Ltd,150000,Consultancy   ,Professional Fees,Services to Place,Network Assets Staff,"12,000.00",401020,11959
29/03/2022,ZZH705113,1,683,AECOM Limited,150000,Consultancy   ,Professional Fees,#N/A,#N/A,"89,015.60",401007,C.01513.201
29/03/2022,ZZH705114,1,15075,Food Sourcery,320000,Social Community Care Supplies & Services  ,Third party payments - Private/Voluntary Sector,Services to Place,Crewe-Manchester RP,"8,000.00",402403,10083
29/03/2022,ZZH705116,1,243,Citizens Advice,150000,Consultancy   ,Professional Fees,Corporate and Support Services,"Info, Advice & Guide","72,500.00",401020,13006
29/03/2022,ZZH705116,2,243,Citizens Advice,150000,Consultancy   ,Professional Fees,Corporate and Support Services,"Info, Advice & Guide","72,500.00",401020,13006
29/03/2022,ZZH705128,1,1781,Animal Wardens,180010,Environmental Services Animal Services ,Animal Welfare,Services to Place,Dog Warden Service,"12,000.00",401206,10902
29/03/2022,ZZH705144,1,3529,Totally Local Company Ltd,210000,Furniture & Soft Furnishings  ,Furniture and Equipment,Services to Place,Mill Lane Cemetery,"5,080.00",400115,11287
29/03/2022,ZZH705145,1,11162,Kenny Waste Management Ltd,210000,Furniture & Soft Furnishings  ,Furniture and Equipment,Services to Place,Mill Lane Cemetery,"1,800.00",400115,11287
29/03/2022,ZZH705145,2,11162,Kenny Waste Management Ltd,210000,Furniture & Soft Furnishings  ,Furniture and Equipment,Services to Place,Mill Lane Cemetery,"3,904.16",400115,11287
29/03/2022,ZZH705146,1,8010,GROUNDWORK & LEISURE SERVIC,240000,Horticultural  ,Grounds Maintenance,Services to Place,Play,"6,950.00",202032,11267
29/03/2022,ZZH705168,1,1339,Stockport NHS Foundation Trust,999999,Fees and Charges,Fees and Charges,Services to People,EHP Children Ctrs Ce,"6,000.00",402404,10122
30/03/2022,ZZH705170,1,8233,MGB Plastics Ltd,182020,Environmental Services Waste Management,Waste Management Equipment,Services to Place,Wheelie Bins,"14,336.00",400401,10864
30/03/2022,ZZH705176,1,35,CBC Computer Systems Ltd,181800,Environmental Services Technical Equipment ,Furniture and Equipment,Services to People,Ethnic Diversity srv,486.00,400110,10305
30/03/2022,ZZH705176,2,35,CBC Computer Systems Ltd,181800,Environmental Services Technical Equipment ,Furniture and Equipment,Services to People,Ethnic Diversity srv,36.00,400110,10305
30/03/2022,ZZH705176,3,35,CBC Computer Systems Ltd,181800,Environmental Services Technical Equipment ,Furniture and Equipment,Services to People,Ethnic Diversity srv,126.00,400110,10305
30/03/2022,ZZH705176,4,35,CBC Computer Systems Ltd,181800,Environmental Services Technical Equipment ,Furniture and Equipment,Services to People,Ethnic Diversity srv,"5,670.00",400110,10305
30/03/2022,ZZH705212,1,3529,Totally Local Company Ltd,390000,Supplies and services,Supplies and services,#N/A,#N/A,"6,607.90",401600,C.01378.203
30/03/2022,ZZH705216,1,1644,Tameside MBC,170000,Education  ,Third party payments - Public Sector,Services to People,OLA pupils,"58,409.00",500304,10371
30/03/2022,ZZH705217,1,14149,Smoothwall Ltd,270000,Information Communication Technology  ,Information and Communications Technology,Corporate and Support Services,IT Infrastructure,"19,990.00",402002,11324
31/03/2022,ZZH705243,1,6909,Learning Pool Ltd,270000,Information Communication Technology  ,Information and Communications Technology,Corporate and Support Services,POD Workforce Dev,"48,790.00",402010,11888
31/03/2022,ZZH705245,1,4369,Pennine Care NHS Trust,999999,Fees and Charges,Fees and Charges,Services to People,SNC,"5,711.94",402404,12929
31/03/2022,ZZH705248,1,4369,Pennine Care NHS Trust,310000,Healthcare  ,Third party payments - Public Sector,Services to People,Omicron SF,"8,000.00",500402,13163
31/03/2022,ZZH705251,1,6748,GEORGE COX & SONS LTD,280000,Legal Services  ,Legal Fees,#N/A,#N/A,"295,327.06",401016,C.01280.203
31/03/2022,ZZH705255,1,15091,The Innovation Unit,150000,Consultancy   ,Professional Fees,Services to People,Regional Imp Allianc,"307,700.00",401007,13031
31/03/2022,ZZH705281,1,5687,BOTTOMLINE TECHNOLOGIES,270000,Information Communication Technology  ,Information and Communications Technology,Corporate and Support Services,I.T Business Relat,"28,937.02",402001,13044
31/03/2022,ZZH705282,1,3529,Totally Local Company Ltd,390000,Supplies and services,Supplies and services,#N/A,#N/A,"7,923.50",401600,C.01363.201
31/03/2022,ZZH705283,1,683,AECOM Limited,150000,Consultancy   ,Professional Fees,#N/A,#N/A,"87,015.60",401007,C.01513.201
31/03/2022,ZZH705285,1,13109,4 Mental Health Ltd,999999,Social Community Care Supplies & Services  ,Service Contract Payments,Services to People,PH-Mental Wellbeing,"5,000.00",561704,12734
31/03/2022,ZZH705293,1,13732,Foundations Stockport Ltd,320000,Social Community Care Supplies & Services  ,Third party payments - Private/Voluntary Sector,#N/A,#N/A,"970,000.00",500530,13174
31/03/2022,ZZH705294,1,1382,Pure Innovations Ltd,150000,Consultancy   ,Professional Fees,#N/A,#N/A,"400,000.00",401020,13175
31/03/2022,ZZH705295,1,178,Trafford Council,150000,Consultancy   ,Professional Fees,Services to People,Modernisation,"14,472.50",401020,11876
31/03/2022,ZZH705301,1,7849,Lunson Mitchenall Ltd,150000,Consultancy   ,Professional Fees,Services to Place,Redrock IE,"12,690.00",401020,12062
31/03/2022,ZZH705304,1,3529,Totally Local Company Ltd,390000,"Works - Construction, Repair & Maintenance  ",Capital Expenditure - Works,#N/A,#N/A,"10,000.00",200304,C.01514.203
31/03/2022,ZZH705312,1,3529,Totally Local Company Ltd,381600,Vehicle Management Hire/Leasing ,Leasing /Transport Hire,Services to Place,Berevement Services,"5,084.52",300300,11285
31/03/2022,ZZH705318,1,3529,Totally Local Company Ltd,390000,"Works - Construction, Repair & Maintenance  ",Capital Expenditure - Works,#N/A,#N/A,"51,000.00",200304,C.01514.203
31/03/2022,ZZH705320,1,3529,Totally Local Company Ltd,390000,"Works - Construction, Repair & Maintenance  ",Capital Expenditure - Works,#N/A,#N/A,"9,000.00",200304,C.01514.203
31/03/2022,ZZH705334,1,3292,Reach Publishing Services Ltd,190000,Facilities & Management Services  ,Publicity and Promotion,#N/A,#N/A,"10,000.00",401800,13179
12/01/2022,ZZP701490,1,5788,DESIGNED ROOF SYSTEMS LTD,390000,"Works - Construction, Repair & Maintenance  ",Repairs and Maintenance,#N/A,#N/A,"30,428.00",200127,C.10523.193
